Workbook

Sheet Introduction

Sheet Main Menu (hidden)
L16: Project ID
L17: Project Location
L18: Date
L19: Description
L20: Name/Initials of Respondent

Sheet Other Factors (hidden)

Sheet Bridges (hidden)
B13: Project ID | C13: =IF('Main Menu'!M16="","",'Main Menu'!M16) -> 
B14: Project Location | C14: =IF('Main Menu'!M17="","",'Main Menu'!M17) -> 
B15: Date | C15: =IF('Main Menu'!M18="","",'Main Menu'!M18) -> 
B16: Description | C16: =IF('Main Menu'!M19="","",'Main Menu'!M19) -> 
B17: Name/Initials of Respondent | C17: =IF('Main Menu'!M20="","",'Main Menu'!M20) -> 
B24: Factor | C24: Description | F24: Severity
B25: Project Duration | C25: 1 = Short ( ≤ 15 calendar weeks) 2 = Mid-range (15-30 calendar weeks) 3 = Long ( ≥ 30 calendar weeks)
B26: Project Size | C26: 1 = Small ( ≤ 5,000 total SF brige deck) 2 = Medium (5,000 - 40,000 total SF brige deck) 3 = Large ( ≥ 40,000 total SF brige deck)
B27: Type of Construction | C27: 1 = New construction project (new deck) 2 = Reconstruction, resurfacing or maintenance project 3 = Rehabilitation project (structure currently used for transportation)
B28: Expedited Project Schedule | C28: 1 = 40 hours week, 8 hours per day, normal (optimum) crew size, no work on holidays. 2 = 50 hours per week, larger than normal or constantly changing crew sizes, work on some holidays 3 = Working beyond 50 weekly hours (overtime), much larger than normal crew sizes (overmanning), working on all holidays, no excuse completion dates.
B29: Night Time Construction | C29: 1 = Daytime construction 3 = Nighttime construction
B30: Urban Project | C30: 1 = Rural area no traffic 2 = Rural area under traffic 3 = Urban area with city streets, nearby residents, commercial buildings, urban cross-sections
B31: Traffic Conditions | C31: 1 = Low traffic, road closed 2 = Moderate traffic, working adjacent to existing traffic 3 = High traffic, open to traffic, lane restrictions, limited work area
B32: Project Constraints | C32: 1 = No site constraints (few utilities, intersections, driveways, gaps, roundabouts) 2 = Moderate site constraints (some utilities, ramps, limited space for equipment, adjacent buildings) 3 = Difficult site constraints (presence of significant utilities, conflict with other operations)
B33: Season | C33: 1 = Summer, air temperature above 60 °F, some rainfall (minimum level) 2 = Spring or fall, air temperature between 35 and 60 °F, moderate level of rainfall 3 = Winter, air temperature below 35 °F, extreme rainfall and snow
B34: Staged Contruction | C34: 1 = Single phase 2 = Two phases, structure done half at a time 3 = Three or more phases, portions of project done in different stages and multiple mobilizations
B35: Permit Restrictions | C35: 1 = Having approved environmental documents, no noise constraints, no vibration constraints 2 = Need to account for noise restrictions and/or vibration constraints during operating time 3 = Different permits needed for erosion control issues, water and dust constraints, storm water treatment, hazardous material, removal and disposal of underground fuel tanks, contaminated soils
B36: Difficulty | C36: 1 = Normal 2 = Difficult 3 = Very Difficult

Sheet Output Bridges (hidden)
B12: Project ID | C12: =IF(Bridges!C13="","",Bridges!C13) -> 
B13: Project Location | C13: =IF(Bridges!C14="","",Bridges!C14) -> 
B14: Date | C14: =IF(Bridges!C15="","",Bridges!C15) -> 
B15: Description | C15: =IF(Bridges!C16="","",Bridges!C16) -> 
B16: Name/Initials of Respondent | C16: =IF(Bridges!C17="","",Bridges!C17) -> 
B23: (*) means formed, poured and stripped.
D25: Productivity Rates
B26: Activity | D26: Min | E26: Predicted Value | F26: Max | G26: Unit/Day
B27: Concrete Masonry, Substructure | D27: 0.2 | E27: =HiddenBridges!U25 -> 2.5235 | F27: =HiddenBridges!$U$15 -> 4 | G27: Pours/Day
B30: Temporary Sheet Piling (height>=15') | D30: =HiddenBridges!$U$28 -> 115 | E30: =HiddenBridges!U42 -> 115 | F30: =HiddenBridges!$U$32 -> 2000 | G30: S.F./Day
B33: Parapet (Straight Back) | D33: =HiddenBridges!$U$45 -> 16 | E33: =HiddenBridges!U59 -> 16 | F33: =HiddenBridges!$U$49 -> 200 | G33: Feet/Day
B36: Deck Placement, Girder bridge | D36: =HiddenBridges!U63 -> 120 | E36: =HiddenBridges!U77 -> 1396.04 | F36: =HiddenBridges!U67 -> 1499 | G36: S.F./Day
D41: Productivity Rates
B42: Activity | D42: Min | E42: Average | F42: Max | G42: Unit/Day
A43: Decks | B43: Parapet (Architectural) | D43: =HiddenBridges!J94 -> 69 | E43: =HiddenBridges!K94 -> 110 | F43: =HiddenBridges!L94 -> 150 | G43: Ft
B45: Parapet (with Liner) | D45: =HiddenBridges!J95 -> 33 | E45: =HiddenBridges!K95 -> 74 | F45: =HiddenBridges!L95 -> 150 | G45: Ft
B47: Deck Placement, Slab Bridge* | D47: =HiddenBridges!J96 -> 263 | E47: =HiddenBridges!K96 -> 383 | F47: =HiddenBridges!L96 -> 500 | G47: Sf
B49: Deck Removal, Partial Depth | D49: =HiddenBridges!J97 -> 197 | E49: =HiddenBridges!K97 -> 3444 | F49: =HiddenBridges!L97 -> 20000 | G49: Sf
B51: Deck Removal, Full Depth | D51: =HiddenBridges!J98 -> 2577 | E51: =HiddenBridges!K98 -> 5383 | F51: =HiddenBridges!L98 -> 8189 | G51: Sf
B53: Deck Slab Repair | D53: 90 | E53: 270 | F53: 450 | G53: Sy
B55: Bridge Overlay with Joint Repair | D55: =HiddenBridges!J100 -> 600 | E55: =HiddenBridges!K100 -> 1300 | F55: =HiddenBridges!L100 -> 2000 | G55: Ft
B57: Bridge Overlay without Joint Repair | D57: =HiddenBridges!J101 -> 125 | E57: =HiddenBridges!K101 -> 146 | F57: =HiddenBridges!L101 -> 168 | G57: Ft
B59: Bridge Overlay with <25% Deck Prep | D59: =HiddenBridges!J102 -> 700 | E59: =HiddenBridges!K102 -> 2000 | F59: =HiddenBridges!L102 -> 4400 | G59: Sy
B61: Bridge Overlay with ≥25% Deck Prep | D61: =HiddenBridges!J103 -> 20 | E61: =HiddenBridges!K103 -> 190 | F61: =HiddenBridges!L103 -> 360 | G61: Sy
A63: Superstructure | B63: Precast Concrete Girder Erection | D63: =HiddenBridges!J104 -> 2.5 | E63: =HiddenBridges!K104 -> 5.8 | F63: =HiddenBridges!L104 -> 9 | G63: Each
B65: Steel Girder Erection | D65: =HiddenBridges!J105 -> 4 | E65: =HiddenBridges!K105 -> 7.5 | F65: =HiddenBridges!L105 -> 11 | G65: Each
B67: Form + Pour Diaphragms * | D67: =HiddenBridges!J106 -> 0.5 | E67: =HiddenBridges!K106 -> 2.7 | F67: =HiddenBridges!L106 -> 6 | G67: Each
A69: Foundation | B69: Driving Piles (All Types) | D69: =HiddenBridges!J107 -> 50 | E69: =HiddenBridges!K107 -> 350 | F69: =HiddenBridges!L107 -> 1000 | G69: Ft
B71: Caissons | D71: =HiddenBridges!J108 -> 60 | E71: =HiddenBridges!K108 -> 74 | F71: =HiddenBridges!L108 -> 88 | G71: Ft
B73: Spread Footings * | D73: =HiddenBridges!J109 -> 0.25 | E73: =HiddenBridges!K109 -> 0.25 | F73: =HiddenBridges!L109 -> 0.25 | G73: Pours
B75: Cofferdam | D75: =HiddenBridges!J110 -> 250 | E75: =HiddenBridges!K110 -> 265 | F75: =HiddenBridges!L110 -> 280 | G75: Sf
B77: Temporary Sheet Piling (height<15’) | D77: =HiddenBridges!J111 -> 433 | E77: =HiddenBridges!K111 -> 783 | F77: =HiddenBridges!L111 -> 1133 | G77: Sf
A79: Other | B79: Concrete Masonry, Culverts * | D79: =HiddenBridges!J112 -> 0.7 | E79: =HiddenBridges!K112 -> 1.3 | F79: =HiddenBridges!L112 -> 1.8 | G79: Panels
B81: Retaining Walls: Cast in Place* | D81: =HiddenBridges!J113 -> 273 | E81: =HiddenBridges!K113 -> 286 | F81: =HiddenBridges!L113 -> 300 | G81: Panels
B83: Retaining Walls: Precast (including footing) | D83: =HiddenBridges!J114 -> 350 | E83: =HiddenBridges!K114 -> 350 | F83: =HiddenBridges!L114 -> 350 | G83: Sf
B85: Retaining Walls: Mechanically Stabilized | D85: =HiddenBridges!J115 -> 165 | E85: =HiddenBridges!K115 -> 1080 | F85: =HiddenBridges!L115 -> 2000 | G85: Sf
B87: Moment Slab on MSE walls* | D87: =HiddenBridges!J116 -> 28 | E87: =HiddenBridges!K116 -> 176 | F87: =HiddenBridges!L116 -> 350 | G87: Ft
B89: Noise Walls | D89: =HiddenBridges!J117 -> 300 | E89: =HiddenBridges!K117 -> 650 | F89: =HiddenBridges!L117 -> 1000 | G89: Sf
B91: Maintenance Painting (Clean + Paint) | D91: =HiddenBridges!J118 -> 100 | E91: =HiddenBridges!K118 -> 200 | F91: =HiddenBridges!L118 -> 300 | G91: Sf
B93: Full Containment Painting (Clean+Paint) | D93: =HiddenBridges!J119 -> 550 | E93: =HiddenBridges!K119 -> 7180 | F93: =HiddenBridges!L119 -> 19400 | G93: Sf
B95: Bridge Deck Grooving | D95: =HiddenBridges!J120 -> 7800 | E95: =HiddenBridges!K120 -> 7800 | F95: =HiddenBridges!L120 -> 7800 | G95: Sf
A102: Reliability input | B102: 1
A105: complexity input | B105: 1

Sheet HiddenBridges (hidden)
J1: For Dropdown Menus
J2: 1
J3: 2
J4: 3
C5: Determine whether you would like to have narrow spread, medium spread or large spread for your estimate.
Q6: Boundaries
A7: Dependent Variable 1: Concrete Masonry | I7: x-new (user input) | M7: Estimate of Ῡ | Q7: MIN | R7: MAX
A10: Factors | B10: Estimated Coef. | I10: Possible values | J10: Input x0 | U10: Concrete Masonry
A11: (Intercept) | B11: 2.5235 | H11: (Intercept) | I11: 1 | J11: 1 | M11: =B11+B12*J12+B13*J13 -> 2.5235 | Q11: 0.2 | R11: 4 | T11: min | U11: 0.2
A12: StagedConstruction | B12: -1.0335 | H12: StagedConstruction | I12: 1, 2 or 3 | J12: =Bridges!F34 -> 0 | T12: Q1 | U12: 0.625
A13: Project Constraints | B13: 0.7617 | H13: Project Constraints | I13: 1, 2 or 3 | J13: =Bridges!F32 -> 0 | T13: Median | U13: 1.65
T14: Q3 | U14: 2
T15: Max | U15: 4
T17: Box1 - hidden | U17: =U12 -> 0.625
T18: Box 2 - lower | U18: =U13-U12 -> 1.025
T19: Bow 3 - upper | U19: =U14-U13 -> 0.35
T20: Estimate x mark | U20: =M11 -> 2.5235
T21: Whisker Top | U21: =U15-U14 -> 2
T22: Whisker Bottom | U22: =U12-U11 -> 0.425
T23: Estimate y mark | U23: 1
A24: Dependent Variable 2: Sheet Piling (height>=15')
T25: Output | U25: =IF(U20<=U11,U11,IF(U20>=U15,U15,U20)) -> 2.5235
A26: Factors | B26: Estimated Coef. | I26: Possible values | J26: Input x0
A27: (Intercept) | B27: -1068.3 | H27: (Intercept) | I27: 1 | J27: 1 | M27: =B27+J28*B28+B29*J29+J30*B30+B31*J31 -> -1068.3 | Q27: 110 | R27: 2000 | U27: Sheet Piling (height>=15')
A28: Season | B28: 1111.5 | H28: Season | I28: 1, 2 or 3 | J28: =Bridges!F33 -> 0 | T28: min | U28: 115
A29: Project Size | B29: 343.2 | H29: Project Size | I29: 1, 2 or 3 | J29: =Bridges!F26 -> 0 | T29: Q1 | U29: 250
A30: Permit Restriction | B30: -363.2 | H30: Permit Restriction | I30: 1, 2 or 3 | J30: =Bridges!F35 -> 0 | T30: Median | U30: 435
T31: Q3 | U31: 750
T32: Max | U32: 2000
T34: Box1 - hidden | U34: =U29 -> 250
T35: Box 2 - lower | U35: =U30-U29 -> 185
T36: Bow 3 - upper | U36: =U31-U30 -> 315
T37: Estimate | U37: =M27 -> -1068.3
T38: Whisker Top | U38: =U32-U31 -> 1250
T39: Whisker Bottom | U39: =U29-U28 -> 135
T40: Estimate y mark | U40: 1
A41: Dependent Variable 3: Parapet Straight
T42: Output | U42: =IF(U37<=U28,U28,IF(U37>=U32,U32,U37)) -> 115
A43: Factors | B43: Estimated Coef. | I43: Possible values | J43: Input
A44: (Intercept) | B44: 1 | H44: (Intercept) | I44: 1 | J44: 1 | M44: =B44+B45*J45 -> 1 | Q44: 40 | R44: 400 | U44: Parapet (Straight Back)
A45: ProjectDuration | B45: 49.75 | H45: ProjectDuration | I45: 1, 2 or 3 | J45: =Bridges!F25 -> 0 | T45: min | U45: 16
T46: Q1 | U46: 57
T47: Median | U47: 90.5
T48: Q3 | U48: 150.25
T49: Max | U49: 200
T51: Box1 - hidden | U51: =U46 -> 57
T52: Box 2 - lower | U52: =U47-U46 -> 33.5
T53: Bow 3 - upper | U53: =U48-U47 -> 59.75
T54: Estimate | U54: =M44 -> 1
T55: Whisker Top | U55: =U49-U48 -> 49.75
T56: Whisker Bottom | U56: =U46-U45 -> 41
T57: Estimate y mark | U57: 1
A59: Dependent Variable 4: Deck Placement, Girder bridge | T59: Output | U59: =IF(U54<=U45,U45,IF(U54>=U49,U49,U54)) -> 16
A61: Factors | B61: Estimated Coef. | I61: Possible values | J61: Input
A62: (Intercept) | B62: 1396.04 | H62: (Intercept) | I62: 1 | J62: 1 | M62: =B62+B63*J63+B64*J64+B65*J65 -> 1396.04 | Q62: 120 | R62: 800 | U62: Deck Placement, Girder bridge
A63: Staged Construction | B63: -338.63 | H63: Staged Construction | I63: 1, 2 or 3 | J63: =Bridges!F34 -> 0 | T63: min | U63: 120
T64: Q1 | U64: 326.25
T65: Median | U65: 620
T66: Q3 | U66: 987.25
T67: Max | U67: 1499
T69: Box1 - hidden | U69: =U64 -> 326.25
T70: Box 2 - lower | U70: =U65-U64 -> 293.75
T71: Bow 3 - upper | U71: =U66-U65 -> 367.25
T72: Estimate | U72: =M62 -> 1396.04
T73: Whisker Top | U73: =U67-U66 -> 511.75
T74: Whisker Bottom | U74: =U64-U63 -> 206.25
T75: Estimate y mark | U75: 1
T77: Output | U77: =IF(U72<=U63,U63,IF(U72>=U67,U67,U72)) -> 1396.04
H84: Non Modelled Activities
J91: Min | K91: Average | L91: Max | M91: N
J93: 0.5 | K93: 0.5 | L93: 0.5
H94: Parapet (Architectural) | J94: 69 | K94: 110 | L94: 150 | M94: D
H95: Parapet (with Liner) | J95: 33 | K95: 74 | L95: 150 | M95: 4
H96: Deck Placement, Slab Bridge* | J96: 263 | K96: 383 | L96: 500 | M96: D
H97: Deck Removal, Partial Depth | J97: 197 | K97: 3444 | L97: 20000 | M97: 14
H98: Deck Removal, Full Depth | J98: 2577 | K98: 5383 | L98: 8189 | M98: D
H99: Deck Slab Repair | J99: NA | K99: NA | L99: NA
H100: Bridge Overlay with Joint Repair | J100: 600 | K100: 1300 | L100: 2000 | M100: D
H101: Bridge Overlay without Joint Repair | J101: 125 | K101: 146 | L101: 168 | M101: 2
H102: Bridge Overlay with <25% Deck Prep | J102: 700 | K102: 2000 | L102: 4400 | M102: 3
H103: Bridge Overlay with ≥25% Deck Prep | J103: 20 | K103: 190 | L103: 360 | M103: 2
H104: Precast Concrete Girder Erection | J104: 2.5 | K104: 5.8 | L104: 9 | M104: 15
H105: Steel Girder Erection | J105: 4 | K105: 7.5 | L105: 11 | M105: D
H106: Form + Pour Diaphragms * | J106: 0.5 | K106: 2.7 | L106: 6 | M106: 8
H107: Driving Piles (All Types) | J107: 50 | K107: 350 | L107: 1000 | M107: 19
H108: Caissons | J108: 60 | K108: 74 | L108: 88 | M108: 2
H109: Spread Footings * | J109: 0.25 | K109: 0.25 | L109: 0.25 | M109: 1
H110: Cofferdam | J110: 250 | K110: 265 | L110: 280 | M110: 2
H111: Temporary Sheet Piling (height<15’) | J111: 433 | K111: 783 | L111: 1133 | M111: D
H112: Concrete Masonry, Culverts * | J112: 0.7 | K112: 1.3 | L112: 1.8 | M112: D
H113: Retaining Walls: Cast in Place* | J113: 273 | K113: 286 | L113: 300 | M113: 2
H114: Retaining Walls: Precast (including footing) | J114: 350 | K114: 350 | L114: 350 | M114: 1
H115: Retaining Walls: Mechanically Stabilized | J115: 165 | K115: 1080 | L115: 2000 | M115: 2
H116: Moment Slab on MSE walls* | J116: 28 | K116: 176 | L116: 350 | M116: 3
H117: Noise Walls | J117: 300 | K117: 650 | L117: 1000 | M117: D
H118: Maintenance Painting (Clean + Paint) | J118: 100 | K118: 200 | L118: 300 | M118: D
H119: Full Containment Painting (Clean+Paint) | J119: 550 | K119: 7180 | L119: 19400 | M119: 3
H120: Bridge Deck Grooving | J120: 7800 | K120: 7800 | L120: 7800 | M120: 1

Sheet Earthwork (hidden)
B11: Project ID | C11: =IF('Main Menu'!M16="","",'Main Menu'!M16) -> 
B12: Project Location | C12: =IF('Main Menu'!M17="","",'Main Menu'!M17) -> 
B13: Date | C13: =IF('Main Menu'!M18="","",'Main Menu'!M18) -> 
B14: Description | C14: =IF('Main Menu'!M19="","",'Main Menu'!M19) -> 
B15: Name/Initials of Respondent | C15: =IF('Main Menu'!M20="","",'Main Menu'!M20) -> 
B22: Factor | C22: Description | F22: Severity
B23: Project Duration | C23: 1 = Short ( ≤ 20 calendar weeks) 2 = Mid-range (20-30 calendar weeks) 3 = Long ( ≥ 30 calendar weeks)
B24: Project Size | C24: 1 = Small ( ≤ 135,000 total cubic yards) 2 = Medium (135,000 - 300,000 total cubic yards) 3 = Large ( ≥ 300,000 total cubic yards)
B25: Type of work | C25: 1 = New construction project 2 = Reconstruction, resurfacing or maintenance project 3 = Rehabilitation project (structure currently used for transportation)
B26: Expedited Project Schedule | C26: 1 = 40 hours week, 8 hours per day, normal (optimum) crew size, no work on holidays. 2 = 50 hours per week, larger than normal or constantly changing crew sizes, work on some holidays 3 = Working beyond 50 weekly hours (overtime), much larger than normal crew sizes (overmanning), working on all holidays, no excuse completion dates.
B27: Night Time Work | C27: 1 = Daytime construction 3 = Nighttime construction
B28: Project Length | C28: 1 = Short stretch 2 = Medium stretch 3 = Long stretch
B29: Urban Project | C29: 1 = Rural area no traffic 2 = Rural area under traffic 3 = Urban area with city streets, nearby residents, commercial buildings, urban cross-sections
B30: Materials Delivery | C30: 1 = Easy to get materials and equipment to construction site 2 = Some delays in getting materials on site (long distances, traffic congestion) 3 = Very difficult to deliver materials to site
B31: Project Constraints | C31: 1 = No site constraints (few utilities, intersections, driveways, gaps, roundabouts) 2 = Moderate site constraints (some utilities, ramps, limited space for equipment, adjacent buildings) 3 = Difficult site constraints (presence of significant utilities, conflict with other operations)
B32: Season | C32: 1 = Summer, air temperature above 60 °F, some rainfall (minimum level) 2 = Spring or fall, air temperature between 35 and 60 °F, moderate level of rainfall 3 = Winter, air temperature below 35 °F, extreme rainfall and snow
B33: Soil Moisture Condition | C33: 1 = Soil near optimum moisture 2 = Wet soil that must be dried 3 = Very wet soil
B34: Soil Type | C34: 1 = Soil is mainly sand 2 = Soil is granular and sandy with some silt and clay 3 = Soil is mainly wet silt, clay or silty clay
B35: Difficulty | C35: 1 = Normal 2 = Difficult 3 = Very Difficult
B36: Staged Construction | C36: 1 = Single phase 2 = Two phases, project done half at a time 3 = Three or more phases, portions of project done in different stages and multiple mobilizations

Sheet Output Earthwork (hidden)
B11: Project ID | C11: =IF(Earthwork!C11=""," ",Earthwork!C11) -> 
B12: Project Location | C12: =IF(Earthwork!C12=""," ",Earthwork!C12) -> 
B13: Date | C13: =IF(Earthwork!C13=""," ",Earthwork!C13) -> 
B14: Description | C14: =IF(Earthwork!C14=""," ",Earthwork!C14) -> 
B15: Name/Initials of Respondent | C15: =IF(Earthwork!C15=""," ",Earthwork!C15) -> 
D21: Productivity Rates
B22: Activity | D22: Min | E22: Predicted Value | F22: Max | G22: Unit/Day
B23: Excavation: Truck | D23: =HiddenEarthwork!$V$9 -> 40 | E23: =HiddenEarthwork!V23 -> 40 | F23: =HiddenEarthwork!$V$13 -> 5000 | G23: C.Y/Day
B26: Excavation: Scraper | D26: =HiddenEarthwork!$V$27 -> 190 | E26: =HiddenEarthwork!V41 -> 1528.5 | F26: =HiddenEarthwork!$V$31 -> 17000 | G26: C.Y/Day
B29: Excavation: Articulated | D29: =HiddenEarthwork!$V$49 -> 250 | E29: =HiddenEarthwork!V63 -> 2199.8 | F29: =HiddenEarthwork!$V$53 -> 8000 | G29: C.Y/Day
B32: Base Course Roadway | D32: =HiddenEarthwork!$V$70 -> 40 | E32: =HiddenEarthwork!V84 -> 385.1 | F32: =HiddenEarthwork!$V$74 -> 7000 | G32: Tons/Day
B35: Base Course Shoulders | D35: =HiddenEarthwork!$V$90 -> 30 | E35: =HiddenEarthwork!V104 -> 30 | F35: =HiddenEarthwork!$V$94 -> 2500 | G35: Tons/Day
B38: Breaker Run | D38: =HiddenEarthwork!$V$107 -> 25 | E38: =HiddenEarthwork!V121 -> 25 | F38: =HiddenEarthwork!$V$111 -> 4115 | G38: C.Y/Day
B41: Shallow Excavation | D41: =HiddenEarthwork!$V$135 -> 75 | E41: =HiddenEarthwork!V149 -> 350.3 | F41: =HiddenEarthwork!$V$139 -> 4000 | G41: C.Y/Day
B44: Excavation Below Subgrade | D44: =HiddenEarthwork!$V$154 -> 15 | E44: =HiddenEarthwork!V168 -> 15 | F44: =HiddenEarthwork!$V$158 -> 3000 | G44: C.Y/Day
B47: Clearing & Grubbing | D47: =HiddenEarthwork!$V$176 -> 1 | E47: =HiddenEarthwork!V190 -> 6.036 | F47: =HiddenEarthwork!$V$180 -> 30 | G47: Stations/Day
D51: Productivity Rates
B52: Activity | D52: Min | E52: Average | F52: Max | G52: Unit/Day
B53: Soft Rock Excavation | D53: 1000 | E53: 1300 | F53: 1800 | G53: C.Y./Day
B55: Hard Rock Excavation | D55: 176 | E55: 706 | F55: 1200 | G55: C.Y./Day
B57: Topsoil Placement | D57: 20 | E57: 1100 | F57: 8223 | G57: C.Y./Day
B59: Marsh Excavation (depth ≤8’) | D59: 458 | E59: 3486 | F59: 5000 | G59: C.Y./Day
B61: Marsh Excavation (depth >8’) | D61: 1200 | E61: 2139 | F61: 4600 | G61: C.Y./Day
A68: Reliability input | B68: 1
A69: complexity input | B69: 1

Sheet HiddenEarthwork (hidden)
R5: Boundaries
A6: Dependent Variable 1: Exacavation Truck | I6: x-new (user input) | N6: Estimate of Ῡ | R6: MIN | S6: MAX
A8: Factors | B8: Estimated Coef. | I8: Possible values | J8: Input x0 | V8: Excavation Truck
A9: (Intercept) | B9: -141.5 | H9: (Intercept) | I9: 1 | J9: 1 | N9: =B9*J9+B10*J10 -> -141.5 | R9: 200 | S9: 5000 | U9: min | V9: 40
A10: Size | B10: 967.8 | H10: Size | I10: 1, 2 or 3 | J10: =Earthwork!F24 -> 0 | U10: Q1 | V10: 600
U11: Median | V11: 1500
U12: Q3 | V12: 2400
U13: Max | V13: 5000
U15: Box1 - hidden | V15: =V10 -> 600
U16: Box 2 - lower | V16: =V11-V10 -> 900
U17: Bow 3 - upper | V17: =V12-V11 -> 900
U18: Estimate x mark | V18: =N9 -> -141.5
U19: Whisker Top | V19: =V13-V12 -> 2600
U20: Whisker Bottom | V20: =V10-V9 -> 560
U21: Estimate y mark | V21: 1
U23: Output | V23: =IF(V18<=V9,V9,IF(V18>=V13,V13,V18)) -> 40
A24: Dependent Variable 2: Exacavation Scrapers
A26: Factors | B26: Estimated Coef. | I26: Possible values | J26: Input x0 | V26: Excavation Scraper
A27: (Intercept) | B27: 1528.5 | H27: (Intercept) | I27: 1 | J27: 1 | N27: =B27*J27+B28*J28+B29*J29 -> 1528.5 | R27: 75 | S27: 17000 | U27: min | V27: 190
A28: Size | B28: 3344.4 | H28: Size | I28: 1, 2 or 3 | J28: =Earthwork!F24 -> 0 | U28: Q1 | V28: 1375
A29: Materials Delivery | B29: -2792.9 | H29: Materials Delivery | I29: 1, 2 or 3 | J29: =Earthwork!F30 -> 0 | U29: Median | V29: 5075
U30: Q3 | V30: 8000
U31: Max | V31: 17000
U33: Box1 - hidden | V33: =V28 -> 1375
U34: Box 2 - lower | V34: =V29-V28 -> 3700
U35: Bow 3 - upper | V35: =V30-V29 -> 2925
U36: Estimate x mark | V36: =N27 -> 1528.5
U37: Whisker Top | V37: =V31-V30 -> 9000
U38: Whisker Bottom | V38: =V28-V27 -> 1185
U39: Estimate y mark | V39: 1
U41: Output | V41: =IF(V36<=V27,V27,IF(V36>=V31,V31,V36)) -> 1528.5
A46: Dependent Variable 3: Exacavation Articulated
A48: Factors | B48: Estimated Coef. | I48: Possible values | J48: Input x0 | V48: Excavation Articulated
A49: (Intercept) | B49: 2199.8 | H49: (Intercept) | I49: 1 | J49: 1 | N49: =B49*J49+B50*J50+B51*J51+B52*J52 -> 2199.8 | R49: 250 | S49: 8000 | U49: min | V49: 250
A50: Size | B50: 2203.2 | H50: Size | I50: 1, 2 or 3 | J50: =Earthwork!F24 -> 0 | U50: Q1 | V50: 1925
A51: Expediated Schedule | B51: -1377.9 | H51: Expediated Schedule | I51: 1, 2 or 3 | J51: =Earthwork!F26 -> 0 | U51: Median | V51: 3000
A52: Season | B52: -1694.7 | H52: Season | I52: 1, 2 or 3 | J52: =Earthwork!F32 -> 0 | U52: Q3 | V52: 4500
U53: Max | V53: 8000
U55: Box1 - hidden | V55: =V50 -> 1925
U56: Box 2 - lower | V56: =V51-V50 -> 1075
U57: Bow 3 - upper | V57: =V52-V51 -> 1500
U58: Estimate x mark | V58: =N49 -> 2199.8
U59: Whisker Top | V59: =V53-V52 -> 3500
U60: Whisker Bottom | V60: =V50-V49 -> 1675
U61: Estimate y mark | V61: 1
U63: Output | V63: =IF(V58<=V49,V49,IF(V58>=V53,V53,V58)) -> 2199.8
A67: Dependent Variable 4: Base Course Roadway
A69: Factors | B69: Estimated Coef. | I69: Possible values | J69: Input x0 | V69: Base Course Roadway
A70: (Intercept) | B70: 385.1 | H70: (Intercept) | I70: 1 | J70: 1 | N70: =B70*J70+B71*J71+B72*J72 -> 385.1 | R70: 200 | S70: 7000 | U70: min | V70: 40
A71: Size | B71: 1243.3 | H71: Size | I71: 1, 2 or 3 | J71: =Earthwork!F24 -> 0 | U71: Q1 | V71: 600
A72: Night Work | B72: -612.3 | H72: Night Work | I72: 1, 2 or 3 | J72: =Earthwork!F27 -> 0 | U72: Median | V72: 1500
U73: Q3 | V73: 2750
U74: Max | V74: 7000
U76: Box1 - hidden | V76: =V71 -> 600
U77: Box 2 - lower | V77: =V72-V71 -> 900
U78: Bow 3 - upper | V78: =V73-V72 -> 1250
U79: Estimate x mark | V79: =N70 -> 385.1
U80: Whisker Top | V80: =V74-V73 -> 4250
U81: Whisker Bottom | V81: =V71-V70 -> 560
U82: Estimate y mark | V82: 1
U84: Output | V84: =IF(V79<=V70,V70,IF(V79>=V74,V74,V79)) -> 385.1
A87: Dependent Variable 5: Base Course Shoulders
A89: Factors | B89: Estimated Coef. | I89: Possible values | J89: Input x0 | V89: Base Course Shoulder
A90: (Intercept) | B90: -477.58 | H90: (Intercept) | I90: 1 | J90: 1 | N90: =B90*J90+B91*J91+B92*J92 -> -477.58 | R90: 80 | S90: 2500 | U90: min | V90: 30
A91: Size | B91: 382.5 | H91: Size | I91: 1, 2 or 3 | J91: =Earthwork!F24 -> 0 | U91: Q1 | V91: 187.5
A92: Type of Work | B92: 332.73 | H92: Type of Work | I92: 1, 2 or 3 | J92: =Earthwork!F25 -> 0 | U92: Median | V92: 743
U93: Q3 | V93: 1000
U94: Max | V94: 2500
U96: Box1 - hidden | V96: =V91 -> 187.5
U97: Box 2 - lower | V97: =V92-V91 -> 555.5
U98: Bow 3 - upper | V98: =V93-V92 -> 257
U99: Estimate x mark | V99: =N90 -> -477.58
U100: Whisker Top | V100: =V94-V93 -> 1500
U101: Whisker Bottom | V101: =V91-V90 -> 157.5
U102: Estimate y mark | V102: 1
A104: Dependent Variable 6: Breaker Run | U104: Output | V104: =IF(V99<=V90,V90,IF(V99>=V94,V94,V99)) -> 30
A106: Factors | B106: Estimated Coef. | I106: Possible values | J106: Input x0 | V106: Breaker Run
A107: (Intercept) | B107: -582.6 | H107: (Intercept) | I107: 1 | J107: 1 | N107: =B107*J107+B108*J108+B109*J109+B110*J110 -> -582.6 | R107: 200 | S107: 5350 | U107: min | V107: 25
A108: Size | B108: 1122.4 | H108: SoilMoisture | I108: 1, 2 or 3 | J108: =Earthwork!F33 -> 0 | U108: Q1 | V108: 488.75
A109: Soil Moisture | B109: 494.5 | H109: Season | I109: 1, 2 or 3 | J109: =Earthwork!F32 -> 0 | U109: Median | V109: 1225
A110: Difficulty | B110: -588.7 | H110: TypeWork | I110: 1, 2 or 3 | J110: =Earthwork!F25 -> 0 | U110: Q3 | V110: 3000
U111: Max | V111: 4115
U113: Box1 - hidden | V113: =V108 -> 488.75
U114: Box 2 - lower | V114: =V109-V108 -> 736.25
U115: Bow 3 - upper | V115: =V110-V109 -> 1775
U116: Estimate x mark | V116: =N107 -> -582.6
U117: Whisker Top | V117: =V111-V110 -> 1115
U118: Whisker Bottom | V118: =V108-V107 -> 463.75
U119: Estimate y mark | V119: 1
U121: Output | V121: =IF(V116<=V107,V107,IF(V116>=V111,V111,V116)) -> 25
A132: Dependent Variable 7: Shallow Excavation
A134: Factors | B134: Estimated Coef. | I134: Possible values | J134: Input x0 | V134: Shallow Excavation
A135: (Intercept) | B135: 350.3 | H135: (Intercept) | I135: 1 | J135: 1 | N135: =B135+B136*J136+B137*J137+B138*J138+B139*J139 -> 350.3 | R135: 75 | S135: 2750 | U135: min | V135: 75
A136: Size | B136: 405.8 | H136: Size | I136: 1, 2 or 3 | J136: =Earthwork!F24 -> 0 | U136: Q1 | V136: 400
A137: Type of Work | B137: -622.8 | H137: MaterialDelivery | I137: 1, 2 or 3 | J137: =Earthwork!F30 -> 0 | U137: Median | V137: 615
A138: Project Duration | B138: 1181.3 | H138: Project Duration | I138: 1, 2 or 3 | J138: =Earthwork!F23 -> 0 | U138: Q3 | V138: 1100
A139: Night Work | B139: -832.1 | H139: Urban Project | I139: 1, 2 or 3 | J139: =Earthwork!F29 -> 0 | U139: Max | V139: 4000
U141: Box1 - hidden | V141: =V136 -> 400
U142: Box 2 - lower | V142: =V137-V136 -> 215
U143: Bow 3 - upper | V143: =V138-V137 -> 485
U144: Estimate x mark | V144: =N135 -> 350.3
U145: Whisker Top | V145: =V139-V138 -> 2900
U146: Whisker Bottom | V146: =V136-V135 -> 325
U147: Estimate y mark | V147: 1
U149: Output | V149: =IF(V144<=V135,V135,IF(V144>=V139,V139,V144)) -> 350.3
A151: Dependent Variable 8: EBS
A153: Factors | B153: Estimated Coef. | I153: Possible values | J153: Input x0 | V153: EBS
A154: (Intercept) | B154: -422.7 | H154: (Intercept) | I154: 1 | J154: 1 | N154: =B154+B155*J155+B156*J156+B157*J157 -> -422.7 | R154: 50 | S154: 6000 | U154: min | V154: 15
A155: Size | B155: 715.4 | H155: Size | I155: 1, 2 or 3 | J155: =Earthwork!F24 -> 0 | U155: Q1 | V155: 392
A156: Night Work | B156: -549.4 | H156: Night Work | I156: 1, 2 or 3 | J156: =Earthwork!F27 -> 0 | U156: Median | V156: 827.5
A157: Type Work | B157: 507.6 | H157: Type Work | I157: 1, 2 or 3 | J157: =Earthwork!F25 -> 0 | U157: Q3 | V157: 1112.5
U158: Max | V158: 3000
U160: Box1 - hidden | V160: =V155 -> 392
U161: Box 2 - lower | V161: =V156-V155 -> 435.5
U162: Bow 3 - upper | V162: =V157-V156 -> 285
U163: Estimate x mark | V163: =N154 -> -422.7
U164: Whisker Top | V164: =V158-V157 -> 1887.5
U165: Whisker Bottom | V165: =V155-V154 -> 377
U166: Estimate y mark | V166: 1
U168: Output | V168: =IF(V163<=V154,V154,IF(V163>=V158,V158,V163)) -> 15
A173: Dependent Variable 9: Clearing and Grubbing
A175: Factors | B175: Estimated Coef. | I175: Possible values | J175: Input x0 | V175: Clearing & Grubbing
A176: (Intercept) | B176: 6.036 | H176: (Intercept) | I176: 1 | J176: 1 | N176: =B176*J176+B177*J177+B178*J178 -> 6.036 | R176: 1 | S176: 25 | U176: min | V176: 1
A177: Size | B177: 6.838 | H177: Size | I177: 1, 2 or 3 | J177: =Earthwork!F24 -> 0 | U177: Q1 | V177: 5.5
A178: Expediated Schedule | B178: -5.198 | H178: Expediated Schedule | I178: 1, 2 or 3 | J178: =Earthwork!F26 -> 0 | U178: Median | V178: 8
U179: Q3 | V179: 10
U180: Max | V180: 30
U182: Box1 - hidden | V182: =V177 -> 5.5
U183: Box 2 - lower | V183: =V178-V177 -> 2.5
U184: Bow 3 - upper | V184: =V179-V178 -> 2
U185: Estimate x mark | V185: =N176 -> 6.036
U186: Whisker Top | V186: =V180-V179 -> 20
U187: Whisker Bottom | V187: =V177-V176 -> 4.5
U188: Estimate y mark | V188: 1
U190: Output | V190: =IF(V185<=V176,V176,IF(V185>=V180,V180,V185)) -> 6.036
H195: Non Modelled Activities
J202: Min | K202: Average | L202: Max | M202: N
J204: 0.5 | K204: 0.5 | L204: 0.5
H205: Soft Rock Excavation | J205: 1000 | K205: 1300 | L205: 1800 | M205: 3
H206: Hard Rock Excavation | J206: 176 | K206: 706 | L206: 1200 | M206: 4
H207: Topsoil Placement | J207: 20 | K207: 1100 | L207: 8223 | M207: 32
H208: Marsh Excavation (depth ≤8’) | J208: 458 | K208: 3486 | L208: 5000 | M208: 3
H209: Marsh Excavation (depth >8’) | J209: 1200 | K209: 2138 | L209: 4600 | M209: 9

Sheet Asphalt Paving (hidden)
B13: Project ID | C13: =IF('Main Menu'!M16="","",'Main Menu'!M16) -> 
B14: Project Location | C14: =IF('Main Menu'!M17="","",'Main Menu'!M17) -> 
B15: Date | C15: =IF('Main Menu'!M18="","",'Main Menu'!M18) -> 
B16: Description | C16: =IF('Main Menu'!M19="","",'Main Menu'!M19) -> 
B17: Name/Initials of Respondent | C17: =IF('Main Menu'!M20="","",'Main Menu'!M20) -> 
B24: Factor | C24: Description | F24: Severity
B25: Type of work | C25: 1 = New construction project 2 = Reconstruction, resurfacing or maintenance project 3 = Rehabilitation project (structure currently used for transportation)
B26: Project Size | C26: 1 = Small ( ≤ 10,000 total tons) 2 = Medium (10,000 - 50,000 total tons) 3 = Large ( ≥ 50,000 total cubic tons)
B27: Expedited Project Schedule | C27: 1 = 40 hours week, 8 hours per day, normal (optimum) crew size, no work on holidays. 2 = 50 hours per week, larger than normal or constantly changing crew sizes, work on some holidays. 3 = Working beyond 50 weekly hours (overtime), much larger than normal crew sizes (overmanning), working on all holidays, no excuse completion dates.
B28: Night Time Paving | C28: 1 = Daytime paving 3 = Nighttime paving
B29: Project Length | C29: 1 = Short total project length 2 = Medium total project length 3 = Long total project length
B30: Paving Width | C30: 1 = Wide paving width ( >14’) 2 = Medium paving width ( <14’) 3 = Narrow paving width (shoulders only)
B31: Urban Project | C31: 1 = Rural area no traffic 2 = Rural area under traffic 3 = Urban area with city streets, nearby residents, commercial buildings, urban cross-sections
B32: Size and Proximity of Storage and Staging Areas | C32: 1 = Adequate storage and staging, on site 2 = Limited size of storage and staging 3 = Insufficient storage and staging, in the general area of the project
B33: Numerous Typical Section Transitions | C33: 1 = Continuous pavement width 2 = Some incidental pavement (intersections, ramp tapers) 3 = Many incidental pavement areas (roundabouts, intersections, ramps)
B34: Season | C34: 1 = Summer, air temperature above 60 °F, some rainfall (minimum level) 2 = Spring or fall, air temperature between 35 and 60 °F, moderate level of rainfall 3 = Winter, air temperature below 35 °F, extreme rainfall and snow
B35: Staged Contruction | C35: 1 = Single phase 2 = Two phases, structure done half at a time 3 = Three or more phases, portions of roadway done in different stages and multiple mobilizations
B36: Asphalt Thickness | C36: 1 = Thick pavement structure ( ≥ 4'') 2 = Thin pavement structure (between 2'' and 4'') 3 = Very thin pavement structure ( ≤ 2'')
B37: Type and Amount of Miling | C37: 1 = No correction required 2 = Some correction and asphalt paving removal required 3 = Significant correction required
B38: Presence of Ride Specification | C38: 1 = No ride specification 3 = Presence of ride specifications (such as International Roughness Index)
B39: Difficulty | C39: 1 = Normal 2 = Difficult 3 = Very Difficult

Sheet Output AP (hidden)
B11: Project ID | C11: =IF('Asphalt Paving'!C13=""," ",'Asphalt Paving'!C13) -> 
B12: Project Location | C12: =IF('Asphalt Paving'!C14=""," ",'Asphalt Paving'!C14) -> 
B13: Date | C13: =IF('Asphalt Paving'!C15=""," ",'Asphalt Paving'!C15) -> 
B14: Description | C14: =IF('Asphalt Paving'!C16=""," ",'Asphalt Paving'!C16) -> 
B15: Name/Initials of Respondent | C15: =IF('Asphalt Paving'!C17=""," ",'Asphalt Paving'!C17) -> 
D21: Productivity Rates
B22: Activity | D22: Min | E22: Predicted Value | F22: Max | G22: Unit/Day
B23: HMA Placement Lower Layer | D23: =HiddenAP!$V$9 -> 20 | E23: =HiddenAP!V23 -> 108.41 | F23: =HiddenAP!$V$13 -> 350 | G23: Tons/Hour
B26: HMA Placement Surface Layer | D26: =HiddenAP!$V$27 -> 25 | E26: =HiddenAP!V41 -> 82.06 | F26: =HiddenAP!$V$31 -> 350 | G26: Tons/Hour
B29: Hand Placement of Asphalt Pavement | D29: =HiddenAP!$V$45 -> 4 | E29: =HiddenAP!V59 -> 4 | F29: =HiddenAP!$V$49 -> 150 | G29: Tons/Hour
B32: Thick Milling (>2") | D32: =HiddenAP!$V$64 -> 1467 | E32: =HiddenAP!V78 -> 1638 | F32: =HiddenAP!$V$68 -> 20500 | G32: S.Y./Day
B35: Base Course Placement | D35: =HiddenAP!V83 -> 60 | E35: =HiddenAP!V97 -> 1199.2 | F35: =HiddenAP!V87 -> 3400 | G35: Tons/Day
B38: QMP Density | D38: =HiddenAP!$V$101 -> 2000 | E38: =HiddenAP!V115 -> 4743 | F38: =HiddenAP!$V$105 -> 40000 | G38: S.Y./Day
B41: Rumble Strip Centerline | D41: =HiddenAP!$V$120 -> 650 | E41: =HiddenAP!V134 -> 47221 | F41: =HiddenAP!$V$124 -> 125000 | G41: Feet/Day
B44: Rumble Strip Shoulder | D44: =HiddenAP!$V$139 -> 1250 | E44: =HiddenAP!V152 -> 1250 | F44: =HiddenAP!$V$143 -> 125000 | G44: Feet/Day
D49: Producitivty Rates
B50: Activity | D50: Min | E50: Average | F50: Max | G50: Unit/Day
B51: HMA Placement: Lower Layer | D51: =HiddenAP!V9 -> 20 | E51: =IF(HiddenAP!M9<HiddenAP!R9,HiddenAP!R9,IF(HiddenAP!M9>HiddenAP!S9,HiddenAP!S9,HiddenAP!M9)) -> 108.41 | F51: =HiddenAP!V13 -> 350 | G51: Tons/Hour
B52: HMA Placement: Surface Layer | D52: =IF(HiddenAP!#REF!<HiddenAP!R27,HiddenAP!R27,IF(HiddenAP!#REF!>HiddenAP!S27,HiddenAP!S27,HiddenAP!#REF!)) ->  | E52: =IF(HiddenAP!M27<HiddenAP!R27,HiddenAP!R27,IF(HiddenAP!M27>HiddenAP!S27,HiddenAP!S27,HiddenAP!M27)) -> 82.06 | F52: =IF(HiddenAP!#REF!<HiddenAP!R27,HiddenAP!R27,IF(HiddenAP!#REF!>HiddenAP!S27,HiddenAP!S27,HiddenAP!#REF!)) ->  | G52: Tons/Hour
B53: Hand Placement of Asphalt Pavement | D53: =IF(HiddenAP!#REF!<HiddenAP!R45,HiddenAP!R45,IF(HiddenAP!#REF!>HiddenAP!S45,HiddenAP!S45,HiddenAP!#REF!)) ->  | E53: =IF(HiddenAP!M45<HiddenAP!R45,HiddenAP!R45,IF(HiddenAP!M45>HiddenAP!S45,HiddenAP!S45,HiddenAP!M45)) -> 4 | F53: =IF(HiddenAP!#REF!<HiddenAP!R45,HiddenAP!R45,IF(HiddenAP!#REF!>HiddenAP!S45,HiddenAP!S45,HiddenAP!#REF!)) ->  | G53: Tons/Hour
B54: Base Course Placement | D54: =IF(HiddenAP!#REF!<HiddenAP!#REF!,HiddenAP!#REF!,IF(HiddenAP!#REF!>HiddenAP!#REF!,HiddenAP!#REF!,HiddenAP!#REF!)) ->  | E54: =IF(HiddenAP!#REF!<HiddenAP!#REF!,HiddenAP!#REF!,IF(HiddenAP!#REF!>HiddenAP!#REF!,HiddenAP!#REF!,HiddenAP!#REF!)) ->  | F54: =IF(HiddenAP!#REF!<HiddenAP!#REF!,HiddenAP!#REF!,IF(HiddenAP!#REF!>HiddenAP!#REF!,HiddenAP!#REF!,HiddenAP!#REF!)) ->  | G54: Tons/Day
B55: QMP Profiling | D55: =HiddenAP!J170 -> 9100 | E55: =HiddenAP!K170 -> 105116 | F55: =HiddenAP!L170 -> 469300 | G55: S. Y./Day
B57: Profile Milling | D57: =HiddenAP!J171 -> 14000 | E57: =HiddenAP!K171 -> 14000 | F57: =HiddenAP!L171 -> 14000 | G57: S. Y./Day
B59: Thin milling (0 - 2 in) | D59: =HiddenAP!J172 -> 287 | E59: =HiddenAP!K172 -> 19816 | F59: =HiddenAP!L172 -> 45000 | G59: S. Y./Day
B61: Grooved Epoxy Marking: Grinding Only | D61: =HiddenAP!J173 -> 500 | E61: =HiddenAP!K173 -> 33121 | F61: =HiddenAP!L173 -> 66800 | G61: Ft/Day
B63: Grooved Epoxy Marking: Marking Only | D63: =HiddenAP!J174 -> 500 | E63: =HiddenAP!K174 -> 64433 | F63: =HiddenAP!L174 -> 126000 | G63: Ft/Day
A69: Reliability input | B69: 1
A70: complexity input | B70: 1

Sheet HiddenAP (hidden)
R5: Boundaries
A6: Dependent Variable 1: HMA Placement LL | I6: x-new (user input) | M6: Estimate of Ῡ | R6: MIN | S6: MAX
A8: Factors | B8: Estimated Coef. | I8: Possible values | J8: Input x0 | V8: HMALL
A9: (Intercept) | B9: 108.41 | H9: (Intercept) | I9: 1 | J9: 1 | M9: =B9*J9+B10*J10 -> 108.41 | R9: 20 | S9: 700 | U9: min | V9: 20
A10: Project Size | B10: 45.69 | H10: ExpediatedSchedule | I10: 1, 2 or 3 | J10: ='Asphalt Paving'!F26 -> 0 | U10: Q1 | V10: 119.5
U11: Median | V11: 180
U12: Q3 | V12: 235
U13: Max | V13: 350
U15: Box1 - hidden | V15: =V10 -> 119.5
U16: Box 2 - lower | V16: =V11-V10 -> 60.5
U17: Bow 3 - upper | V17: =V12-V11 -> 55
U18: Estimate x | V18: =M9 -> 108.41
U19: Whisker Top | V19: =V13-V12 -> 115
U20: Whisker Bottom | V20: =V10-V9 -> 99.5
U21: Estimate y | V21: 1
U23: Output | V23: =IF(V18<=V9,V9,IF(V18>=V13,V13,V18)) -> 108.41
A25: Dependent Variable 2: HMA Placement SL
V26: HMASL
A27: Factors | B27: Estimated Coef. | I27: Possible values | J27: Input x0 | M27: =B28*J28+B29*J29 -> 82.06 | R27: 25 | S27: 600 | U27: min | V27: 25
A28: (Intercept) | B28: 82.06 | H28: (Intercept) | I28: 1 | J28: 1 | U28: Q1 | V28: 100
A29: Project Size | B29: 57.57 | H29: Project Size | I29: 1, 2 or 3 | J29: ='Asphalt Paving'!F26 -> 0 | U29: Median | V29: 175
U30: Q3 | V30: 227.5
U31: Max | V31: 350
U33: Box1 - hidden | V33: =V28 -> 100
U34: Box 2 - lower | V34: =V29-V28 -> 75
U35: Bow 3 - upper | V35: =V30-V29 -> 52.5
U36: Estimate | V36: =M27 -> 82.06
U37: Whisker Top | V37: =V31-V30 -> 122.5
U38: Whisker Bottom | V38: =V28-V27 -> 75
U39: Estimate y | V39: 1
U41: Output | V41: =IF(V36<=V27,V27,IF(V36>=V31,V31,V36)) -> 82.06
A43: Dependent Variable 3: Hand Placement of Asphalt Pavement
V44: HAND AP
A45: Factors | B45: Estimated Coef. | I45: Possible values | J45: Input x0 | M45: =B46*J46+B47*J47+B48*J48+B49*J49+B50*J50+B51*J51+B52*J52+B53*J53+B54*J54+B55*J55+B56*J56+B57*J57+B58*J58+B59*J59+B60*J60 -> -332.606 | R45: 4 | S45: 50 | U45: min | V45: 4
A46: (Intercept) | B46: -332.606 | H46: (Intercept) | I46: 1 | J46: 1 | U46: Q1 | V46: 20
A47: Project Length | B47: 96.853 | H47: Project Length | I47: 1,2 or 3 | J47: ='Asphalt Paving'!F29 -> 0 | U47: Median | V47: 37.5
A48: Difficulty | B48: -98.42 | H48: Difficulty | I48: 1,2 or 3 | J48: ='Asphalt Paving'!F39 -> 0 | U48: Q3 | V48: 48
A49: Staged Construction | B49: 94.263 | H49: Staged Construction | I49: 1,2 or 3 | J49: ='Asphalt Paving'!F35 -> 0 | U49: Max | V49: 150
A50: Expediated Schedule | B50: -23.688 | H50: Expediated Schedule | I50: 1,2 or 3 | J50: ='Asphalt Paving'!F27 -> 0
A51: Project Size | B51: 81.59 | H51: Project Size | I51: 1,2 or 3 | J51: ='Asphalt Paving'!F26 -> 0 | U51: Box1 - hidden | V51: =V46 -> 20
A52: Season | B52: 71.773 | H52: Season | I52: 1,2 or 3 | J52: ='Asphalt Paving'!F34 -> 0 | U52: Box 2 - lower | V52: =V47-V46 -> 17.5
A53: Storage and Staging | B53: 39.2 | H53: Storage and Staging | I53: 1,2 or 3 | J53: ='Asphalt Paving'!F32 -> 0 | U53: Bow 3 - upper | V53: =V48-V47 -> 10.5
A54: Type of Work | B54: 170.083 | H54: Type of Work | I54: 1,2 or 3 | J54: ='Asphalt Paving'!F25 -> 0 | U54: Estimate | V54: =M45 -> -332.606
A55: Type Amount of Milling | B55: -52.446 | H55: Type Amount of Milling | I55: 1,2 or 3 | J55: ='Asphalt Paving'!F37 -> 0 | U55: Whisker Top | V55: =V49-V48 -> 102
A56: Typical Transitions | B56: 86.116 | H56: Typical Transitions | I56: 1,2 or 3 | J56: ='Asphalt Paving'!F33 -> 0 | U56: Whisker Bottom | V56: =V46-V45 -> 16
A57: Night Paving | B57: -90.722 | H57: Night Paving | I57: 1,2 or 3 | J57: ='Asphalt Paving'!F28 -> 0 | U57: Estimate y | V57: 1
A58: Ride Specification | B58: 75.594 | H58: Ride Specification | I58: 1,2 or 3 | J58: ='Asphalt Paving'!F38 -> 0
A59: Urban Project | B59: -142.991 | H59: Urban Project | I59: 1,2 or 3 | J59: ='Asphalt Paving'!F31 -> 0 | U59: Output | V59: =IF(V54<=V45,V45,IF(V54>=V49,V49,V54)) -> 4
A60: Asphalt Thickness | B60: -104.108 | H60: Asphalt Thickness | I60: 1,2 or 3 | J60: ='Asphalt Paving'!F36 -> 0
A63: Dependent Variable 4: Thick milling (≥2 in) | V63: Thick Milling
U64: min | V64: 1467
U65: Q1 | V65: 6000
A66: Factors | B66: Estimated Coef. | I66: Possible values | J66: Input x0 | M66: =B67*J67+B68*J68 -> 1638 | R66: 1467 | S66: 20500 | U66: Median | V66: 11000
A67: (Intercept) | B67: 1638 | H67: (Intercept) | I67: 1 | J67: 1 | U67: Q3 | V67: 14793
A68: ProjectLength | B68: 4794 | H68: ProjectLength | I68: 1, 2 or 3 | J68: ='Asphalt Paving'!F29 -> 0 | U68: Max | V68: 20500
U70: Box1 - hidden | V70: =V65 -> 6000
U71: Box 2 - lower | V71: =V66-V65 -> 5000
U72: Bow 3 - upper | V72: =V67-V66 -> 3793
U73: Estimate | V73: =M66 -> 1638
U74: Whisker Top | V74: =V68-V67 -> 5707
U75: Whisker Bottom | V75: =V65-V64 -> 4533
U76: Estimate y | V76: 1
U78: Output | V78: =IF(V73<=V64,V64,IF(V73>=V68,V68,V73)) -> 1638
V82: Base Course
A83: Dependent Variable 5: Base Course | U83: min | V83: 60
U84: Q1 | V84: 885
A85: Factors | B85: Estimated Coef. | I85: Possible values | J85: Input x0 | M85: =B86*J86+B87*J87+B88*J88 -> 1199.2 | R85: 9100 | S85: 469300 | U85: Median | V85: 1200
A86: (Intercept) | B86: 1199.2 | H86: (Intercept) | I86: 1 | J86: 1 | U86: Q3 | V86: 2158
A87: Difficulty | B87: 866.5 | H87: Difficulty | I87: 1, 2 or 3 | J87: ='Asphalt Paving'!F39 -> 0 | U87: Max | V87: 3400
A88: Storage and Staging | B88: -709.9 | H88: Storage and Staging | I88: 1, 2 or 3 | J88: ='Asphalt Paving'!F32 -> 0
U89: Box1 - hidden | V89: =V84 -> 885
U90: Box 2 - lower | V90: =V85-V84 -> 315
U91: Bow 3 - upper | V91: =V86-V85 -> 958
U92: Estimate | V92: =M85 -> 1199.2
U93: Whisker Top | V93: =V87-V86 -> 1242
U94: Whisker Bottom | V94: =V84-V83 -> 825
U95: Estimate y | V95: 1
U97: Output | V97: =IF(V92<=V83,V83,IF(V92>=V87,V87,V92)) -> 1199.2
V100: QMP Density
A101: Dependent Variable 6: QMP Density | U101: min | V101: 2000
U102: Q1 | V102: 5147.25
A103: Factors | B103: Estimated Coef. | I103: Possible values | J103: Input x0 | M103: =B104*J104+B105*J105+B106*J106 -> 4743 | R103: 2000 | S103: 40000 | U103: Median | V103: 10500
A104: (Intercept) | B104: 4743 | H104: (Intercept) | I104: 1 | J104: 1 | U104: Q3 | V104: 15250
A105: TypeAmountMiling | B105: -9140 | H105: TypeAmountMiling | I105: 1, 2 or 3 | J105: ='Asphalt Paving'!F37 -> 0 | U105: Max | V105: 40000
A106: Staged Construction | B106: -8472 | H106: Staged Construction | I106: 1, 2 or 3 | J106: ='Asphalt Paving'!F35 -> 0
U107: Box1 - hidden | V107: =V102 -> 5147.25
U108: Box 2 - lower | V108: =V103-V102 -> 5352.75
U109: Bow 3 - upper | V109: =V104-V103 -> 4750
U110: Estimate | V110: =M103 -> 4743
U111: Whisker Top | V111: =V105-V104 -> 24750
U112: Whisker Bottom | V112: =V102-V101 -> 3147.25
U113: Estimate y | V113: 1
U115: Output | V115: =IF(V110<=V101,V101,IF(V110>=V105,V105,V110)) -> 4743
V119: Rumble Center
A120: Dependent Variable 7: Rumble Strip Center(new to tool) | U120: min | V120: 650
U121: Q1 | V121: 9225
A122: Factors | B122: Estimated Coef. | I122: Possible values | J122: Input x0 | M122: =J123*B123+B124*J124+B125*J125+B126*J126+B127*J127+B128*J128+B129*J129+B130*J130 -> 47221 | R122: 650 | S122: 125000 | U122: Median | V122: 34569.5
A123: (intercept) | B123: 47221 | H123: (intercept) | I123: 1 | J123: 1 | U123: Q3 | V123: 49456.75
A124: RideSpecification | B124: 5635 | H124: RideSpecification | I124: 1, 2 or 3 | J124: ='Asphalt Paving'!F38 -> 0 | U124: Max | V124: 125000
A125: Typical Transitions | B125: -105228 | H125: Typical Transitions | I125: 1, 2 or 3 | J125: ='Asphalt Paving'!F33 -> 0
A126: ProjectSize | B126: 105453 | H126: ProjectSize | I126: 1, 2 or 3 | J126: ='Asphalt Paving'!F26 -> 0 | U126: Box1 - hidden | V126: =V121 -> 9225
A127: Asphalt Thickness | B127: 12680 | H127: Asphalt Thickness | I127: 1, 2 or 3 | J127: ='Asphalt Paving'!F36 -> 0 | U127: Box 2 - lower | V127: =V122-V121 -> 25344.5
A128: Storage and Staging | B128: -16872 | H128: Storage and Staging | I128: 1, 2 or 3 | J128: ='Asphalt Paving'!F32 -> 0 | U128: Bow 3 - upper | V128: =V123-V122 -> 14887.25
A129: Project Length | B129: -13854 | H129: Project Length | I129: 1, 2 or 3 | J129: ='Asphalt Paving'!F29 -> 0 | U129: Estimate | V129: =M122 -> 47221
A130: Project Width | B130: -12905 | H130: Project Width | I130: 1, 2 or 3 | J130: ='Asphalt Paving'!F30 -> 0 | U130: Whisker Top | V130: =V124-V123 -> 75543.25
U131: Whisker Bottom | V131: =V121-V120 -> 8575
U132: Estimate y | V132: 1
U134: Output | V134: =IF(V129<=V120,V120,IF(V129>=V124,V124,V129)) -> 47221
V138: Rumble Shoulder
A139: Dependent Variable 8: Rumble Strip Shoulder(new to tool) | U139: min | V139: 1250
U140: Q1 | V140: 15000
A141: Factors | B141: Estimated Coef. | I141: Possible values | J141: Input x0 | M141: =J142*B142+B143*J143+B144*J144+B145*J145 -> -150645 | R141: 1250 | S141: 125000 | U141: Median | V141: 24000
A142: (intercept) | B142: -150645 | H142: (intercept) | I142: 1 | J142: 1 | U142: Q3 | V142: 30250
A143: RideSpecification | B143: 36910 | H143: RideSpecification | I143: 1, 2 or 3 | J143: ='Asphalt Paving'!F38 -> 0 | U143: Max | V143: 125000
A144: Type Amount of Milling | B144: 47590 | H144: Typical Transitions | I144: 1, 2 or 3 | J144: ='Asphalt Paving'!F33 -> 0
A145: Project Width | B145: 30549 | H145: Asphalt Thickness | I145: 1, 2 or 3 | J145: ='Asphalt Paving'!F36 -> 0 | U145: Box1 - hidden | V145: =V140 -> 15000
U146: Box 2 - lower | V146: =V141-V140 -> 9000
U147: Bow 3 - upper | V147: =V142-V141 -> 6250
U148: Estimate | V148: =M141 -> -150645
U149: Whisker Top | V149: =V143-V142 -> 94750
U150: Whisker Bottom | V150: =V140-V139 -> 13750
U151: Estimate y | V151: 1
U152: Output | V152: =IF(V148<=V139,V139,IF(V148>=V143,V143,V148)) -> 1250
H160: Non Modelled Activities
J167: Min | K167: Average | L167: Max | M167: N
J169: 0.5 | K169: 0.5 | L169: 0.5
H170: QMP Profiling | J170: 9100 | K170: 105116 | L170: 469300 | M170: 9
H171: Profile Milling | J171: 14000 | K171: 14000 | L171: 14000 | M171: 1
H172: Thin Milling(0-2 in) | J172: 287 | K172: 19816 | L172: 45000 | M172: 12
H173: Grooved Epoxy Marking: Grinding Only | J173: 500 | K173: 33121 | L173: 66800 | M173: 4
H174: Grooved Epoxy Marking: Marking Only | J174: 500 | K174: 64433 | L174: 126000 | M174: 3

Sheet Concrete Paving (hidden)
B13: Project ID | C13: =IF('Main Menu'!M16="","",'Main Menu'!M16) -> 
B14: Project Location | C14: =IF('Main Menu'!M17="","",'Main Menu'!M17) -> 
B15: Date | C15: =IF('Main Menu'!M18="","",'Main Menu'!M18) -> 
B16: Description | C16: =IF('Main Menu'!M19="","",'Main Menu'!M19) -> 
B17: Name/Initials of Respondent | C17: =IF('Main Menu'!M20="","",'Main Menu'!M20) -> 
B24: Factor | C24: Description | F24: Severity
B25: Project Size | C25: 1 = Small ( ≤ 15,000 total square yards) 2 = Medium (15,000 - 100,000 total square yards) 3 = Large ( ≥ 100,000 total square yards)
B26: Expedited Project Schedule | C26: 1 = 40 hours week, 8 hours per day, normal (optimum) crew size, no work on holidays. 2 = 50 hours per week, larger than normal or constantly changing crew sizes, work on some holidays. 3 = Working beyond 50 weekly hours (overtime), much larger than normal crew sizes (overmanning), working on all holidays, no excuse completion dates.
B27: Night Time Paving | C27: 1 = Daytime paving 3 = Nighttime paving
B28: Project Length | C28: 1 = Short total project length 2 = Medium total project length 3 = Long total project length
B29: Urban Project | C29: 1 = Rural area no traffic 2 = Rural area under traffic 3 = Urban area with city streets, commercial buildings, urban cross-sections, curb and gutter
B30: Traffic Conditions | C30: 1 = Low traffic, road closed 2 = Moderate traffic, paving adjacent to existing traffic 3 = High traffic, open to traffic, lane restrictions, limited work area
B31: Size and Proximity of Storage and Staging Areas | C31: 1 = Adequate storage and staging, on site 2 = Limited size of storage and staging 3 = Insufficient storage and staging, in the general area of the project
B32: Materials Delivery | C32: 1 = Easy to get materials and equipment to paving site 2 = Difficult to get materials and equipment to paving site 3 = Very difficult to get materials and equipment to paving site
B33: Project Constraints | C33: 1 = No site constraints (few utilities, intersections, driveways, gaps, roundabouts) 2 = Moderate site constraints (some utilities, ramps, limited space for equipment, adjacent buildings) 3 = Difficult site constraints (presence of significant utilities, conflict with other operations)
B34: Numerous Typical Section Transitions | C34: 1 = Continuous pavement width 2 = Some incidental pavement (intersections, ramp tapers) 3 = Many incidental pavement areas (roundabouts, intersections, ramps)
B35: Season | C35: 1 = Summer, air temperature above 60 °F, some rainfall (minimum level) 2 = Spring or fall, air temperature between 35 and 60 °F, moderate level of rainfall 3 = Winter, air temperature below 35 °F, extreme rainfall and snow
B36: Staged Contruction | C36: 1 = Single phase 2 = Two phases, structure done half at a time 3 = Three or more phases, portions of roadway done in different stages and multiple mobilizations
B37: Difficulty | C37: 1 = Normal 2 = Difficult 3 = Very Difficult

Sheet Output CP (hidden)
B11: Project ID | C11: =IF('Concrete Paving'!C13=""," ",'Concrete Paving'!C13) -> 
B12: Project Location | C12: =IF('Concrete Paving'!C14=""," ",'Concrete Paving'!C14) -> 
B13: Date | C13: =IF('Concrete Paving'!C15=""," ",'Concrete Paving'!C15) -> 
B14: Description | C14: =IF('Concrete Paving'!C16=""," ",'Concrete Paving'!C16) -> 
B15: Name/Initials of Respondent | C15: =IF('Concrete Paving'!C17=""," ",'Concrete Paving'!C17) -> 
D20: Productivity Rates
B21: Activity | D21: Min | E21: Predicted Value | F21: Max | G21: Unit/Day
B22: Concrete Paving (thickness > 10") | D22: ='Hidden CP'!$V$9 -> 173 | E22: ='Hidden CP'!V23 -> 852.3 | F22: ='Hidden CP'!$V$13 -> 12000 | G22: S.Y./Day
B25: Concrete Paving (thickness < 10") | D25: ='Hidden CP'!$V$28 -> 300 | E25: ='Hidden CP'!$V$37 -> 2565 | F25: ='Hidden CP'!$V$32 -> 14000 | G25: S.Y./Day
B28: Base Course | D28: ='Hidden CP'!$V$47 -> 21 | E28: ='Hidden CP'!$V$56 -> 1247.8 | F28: ='Hidden CP'!$V$51 -> 3940 | G28: Tons/Day
B31: Sidewalks | D31: ='Hidden CP'!$V$69 -> 350 | E31: ='Hidden CP'!V83 -> 3393.6 | F31: ='Hidden CP'!$V$73 -> 10000 | G31: S.F./Day
B34: Hand Placement of Concrete | D34: ='Hidden CP'!$V$89 -> 57 | E34: ='Hidden CP'!$V$98 -> 172.12 | F34: ='Hidden CP'!$V$93 -> 1300 | G34: S.Y./Day
B37: Curb and Gutter | D37: ='Hidden CP'!$V$108 -> 300 | E37: ='Hidden CP'!$V$122 -> 2642.5 | F37: ='Hidden CP'!$V$112 -> 4112 | G37: S.Y./Day
D41: Productivity Rates
B42: Activity | D42: Min | E42: Average | F42: Max | G42: Unit/Day
B43: Barrier Wall | D43: ='Hidden CP'!J140 -> 44 | E43: ='Hidden CP'!K140 -> 1032 | F43: ='Hidden CP'!L140 -> 2000 | G43: Ft
B45: Grinding | D45: 1000 | E45: 1500 | F45: 2000 | G45: S.Y.
B47: Patching | D47: ='Hidden CP'!J142 -> 70 | E47: ='Hidden CP'!K142 -> 285 | F47: ='Hidden CP'!L142 -> 725 | G47: S.Y.
A54: Reliability input | B54: 1
A55: complexity input | B55: 1

Sheet Hidden CP (hidden)
R5: Boundaries
A6: Dependent Variable 1: Thick Concrete Paving | I6: x-new (user input) | M6: Estimate of Ῡ | R6: MIN | S6: MAX
A8: Factors | B8: Estimated Coef. | I8: Possible values | J8: Input x0 | V8: Thick Paving
A9: (Intercept) | B9: 852.3 | H9: (Intercept) | I9: 1 | J9: 1 | M9: =B9*J9+B10*J10+B11*J11+B12*J12+B13*J13+B14*J14+B15*J15+B16*J16+B17*J17+B18*J18 -> 852.3 | R9: 3000 | S9: 11000 | U9: min | V9: 173
A10: Size | B10: 5779.1 | H10: Size | I10: 1, 2 or 3 | J10: ='Concrete Paving'!F25 -> 0 | U10: Q1 | V10: 1500
A11: Season | B11: -5166.5 | H11: Season | I11: 1, 2 or 3 | J11: ='Concrete Paving'!F35 -> 0 | U11: Median | V11: 3500
A12: Traffic Conditions | B12: 2643.8 | H12: Traffic Conditions | I12: 1, 2 or 3 | J12: ='Concrete Paving'!F30 -> 0 | U12: Q3 | V12: 7350
A13: Night Paving | B13: 3728.3 | H13: Night Paving | I13: 1, 2 or 3 | J13: ='Concrete Paving'!F27 -> 0 | U13: Max | V13: 12000
A14: Typical Section | B14: -2231.2 | H14: Typical Section | I14: 1, 2 or 3 | J14: ='Concrete Paving'!F34 -> 0
A15: Staged Construction | B15: -1644.4 | H15: Staged Construction | I15: 1, 2 or 3 | J15: ='Concrete Paving'!F36 -> 0 | U15: Box1 - hidden | V15: =V10 -> 1500
A16: Storage Staging | B16: 4199.9 | H16: Storage Staging | I16: 1, 2 or 3 | J16: ='Concrete Paving'!F31 -> 0 | U16: Box 2 - lower | V16: =V11-V10 -> 2000
A17: Project Constraints | B17: -5000.6 | H17: Project Constraints | I17: 1, 2 or 3 | J17: ='Concrete Paving'!F33 -> 0 | U17: Bow 3 - upper | V17: =V12-V11 -> 3850
A18: Materials Delivery | B18: -1694.5 | H18: Materials Delivery | I18: 1, 2 or 3 | J18: ='Concrete Paving'!F32 -> 0 | U18: Estimate | V18: =M9 -> 852.3
U19: Whisker Top | V19: =V13-V12 -> 4650
U20: Whisker Bottom | V20: =V10-V9 -> 1327
U21: Estimate y | V21: 1
U23: Output | V23: =IF(V18<=V9,V9,IF(V18>=V13,V13,V18)) -> 852.3
A25: Dependent Variable 2: Thin Concrete Paving
A27: Factors | B27: Estimated Coef. | I27: Possible values | J27: Input x0 | V27: Thin Paving
A28: (Intercept) | B28: 2565 | H28: (Intercept) | I28: 1 | J28: 1 | M28: =B28*J28+B29*J29+B30*J30+B31*J31 -> 2565 | R28: 1233 | S28: 11264 | U28: min | V28: 300
A29: ExpediatedSchedule | B29: -2662.1 | H29: ExpediatedSchedule | I29: 1, 2 or 3 | J29: ='Concrete Paving'!F26 -> 0 | U29: Q1 | V29: 2000
A30: NightPaving | B30: 2899.3 | H30: NightPaving | I30: 1, 2 or 3 | J30: ='Concrete Paving'!F27 -> 0 | U30: Median | V30: 3100
A31: Difficulty | B31: 1518.7 | H31: Difficulty | I31: 1, 2 or 3 | J31: ='Concrete Paving'!F37 -> 0 | U31: Q3 | V31: 5575
U32: Max | V32: 14000
U34: Box1 - hidden | V34: =V29 -> 2000
U35: Box 2 - lower | V35: =V30-V29 -> 1100
U36: Bow 3 - upper | V36: =V31-V30 -> 2475
U37: Estimate | V37: =M28 -> 2565
U38: Whisker Top | V38: =V32-V31 -> 8425
U39: Whisker Bottom | V39: =V29-V28 -> 1700
U40: Estimate y | V40: 1
U42: Output | V42: =IF(V37<=V28,V28,IF(V37>=V32,V32,V37)) -> 2565
A44: Dependent Variable 3: Base Course
A46: Factors | B46: Estimated Coef. | I46: Possible values | J46: Input x0 | V46: Base Course
A47: (Intercept) | B47: 1247.8 | H47: (Intercept) | I47: 1 | J47: 1 | M47: =B47*J47+B48*J48+B49*J49+B50*J50+B51*J51+B52*J52+B53*J53+B54*J54 -> 1247.8 | R47: 400 | S47: 3940 | U47: min | V47: 21
A48: Traffic Conditions | B48: -1156.7 | H48: Traffic Conditions | I48: 1, 2 or 3 | J48: ='Concrete Paving'!F30 -> 0 | U48: Q1 | V48: 762.5
A49: Difficulty | B49: 484.2 | H49: Difficulty | I49: 1, 2 or 3 | J49: ='Concrete Paving'!F37 -> 0 | U49: Median | V49: 1200
A50: Project Length | B50: 664 | H50: Project Length | I50: 1, 2 or 3 | J50: ='Concrete Paving'!F28 -> 0 | U50: Q3 | V50: 2000
A51: Night Paving | B51: 1011.8 | H51: Night Paving | I51: 1, 2 or 3 | J51: ='Concrete Paving'!F27 -> 0 | U51: Max | V51: 3940
A52: Expediated Schedule | B52: 424.8 | H52: Expediated Schedule | I52: 1, 2 or 3 | J52: ='Concrete Paving'!F26 -> 0
A53: Project Constraints | B53: -436.7 | H53: Project Constraints | I53: 1, 2 or 3 | J53: ='Concrete Paving'!F33 -> 0 | U53: Box1 - hidden | V53: =V48 -> 762.5
A54: Materials Delivery | B54: -378.9 | H54: Materials Delivery | I54: 1, 2 or 3 | J54: ='Concrete Paving'!F32 -> 0 | U54: Box 2 - lower | V54: =V49-V48 -> 437.5
U55: Bow 3 - upper | V55: =V50-V49 -> 800
U56: Estimate | V56: =M47 -> 1247.8
U57: Whisker Top | V57: =V51-V50 -> 1940
U58: Whisker Bottom | V58: =V48-V47 -> 741.5
U59: Estimate y | V59: 1
U61: Output | V61: =IF(V56<=V47,V47,IF(V56>=V51,V51,V56)) -> 1247.8
A66: Dependent Variable 4: Sidewalks
A68: Factors | B68: Estimated Coef. | I68: Possible values | J68: Input x0 | V68: Sidewalks
A69: (Intercept) | B69: 3393.6 | H69: (Intercept) | I69: 1 | J69: 1 | M69: =B69*J69+B70*J70+B71*J71 -> 3393.6 | R69: 700 | S69: 16500 | U69: min | V69: 350
A70: Traffic Conditions | B70: -1999.4 | H70: Traffic Conditions | I70: 1, 2 or 3 | J70: ='Concrete Paving'!F30 -> 0 | U70: Q1 | V70: 1370
A71: Storage Staging | B71: 2305.2 | H71: Storage Staging | I71: 1, 2 or 3 | J71: ='Concrete Paving'!F31 -> 0 | U71: Median | V71: 2763
U72: Q3 | V72: 5000
U73: Max | V73: 10000
U75: Box1 - hidden | V75: =V70 -> 1370
U76: Box 2 - lower | V76: =V71-V70 -> 1393
U77: Bow 3 - upper | V77: =V72-V71 -> 2237
U78: Estimate | V78: =M69 -> 3393.6
U79: Whisker Top | V79: =V73-V72 -> 5000
U80: Whisker Bottom | V80: =V70-V69 -> 1020
U81: Estimate y | V81: 1
U83: Output | V83: =IF(V78<=V69,V69,IF(V78>=V73,V73,V78)) -> 3393.6
A86: Dependent Variable 5: Hand Placement of CP
A88: Factors | B88: Estimated Coef. | I88: Possible values | J88: Input x0 | V88: Hand Placement
A89: (Intercept) | B89: 172.12 | H89: (Intercept) | I89: 1 | J89: 1 | M89: =B89*J89+B90*J90 -> 172.12 | R89: 140 | S89: 1300 | U89: min | V89: 57
A90: Size | B90: 167.66 | H90: Size | I90: 1, 2 or 3 | J90: ='Concrete Paving'!F25 -> 0 | U90: Q1 | V90: 250
U91: Median | V91: 425
U92: Q3 | V92: 622.5
U93: Max | V93: 1300
U95: Box1 - hidden | V95: =V90 -> 250
U96: Box 2 - lower | V96: =V91-V90 -> 175
U97: Bow 3 - upper | V97: =V92-V91 -> 197.5
U98: Estimate | V98: =M89 -> 172.12
U99: Whisker Top | V99: =V93-V92 -> 677.5
U100: Whisker Bottom | V100: =V90-V89 -> 193
U101: Estimate y | V101: 1
U103: Output | V103: =IF(V98<=V89,V89,IF(V98>=V93,V93,V98)) -> 172.12
A105: Dependent Variable 6: Curb and Gutter
A107: Factors | B107: Estimated Coef. | I107: Possible values | J107: Input x0 | V107: Curb and Gutter
A108: (Intercept) | B108: 2642.5 | H108: (Intercept) | I108: 1 | J108: 1 | M108: =B108*J108+B109*J109 -> 2642.5 | U108: min | V108: 300
A109: Staged Construction | B109: -546 | H109: Staged Construction | I109: 1, 2 or 3 | J109: ='Concrete Paving'!F36 -> 0 | U109: Q1 | V109: 550
U110: Median | V110: 1200
U111: Q3 | V111: 2000
U112: Max | V112: 4112
U114: Box1 - hidden | V114: =V109 -> 550
U115: Box 2 - lower | V115: =V110-V109 -> 650
U116: Bow 3 - upper | V116: =V111-V110 -> 800
U117: Estimate | V117: =M108 -> 2642.5
U118: Whisker Top | V118: =V112-V111 -> 2112
U119: Whisker Bottom | V119: =V109-V108 -> 250
U120: Estimate y | V120: 1
U122: Output | V122: =IF(V117<=V108,V108,IF(V117>=V112,V112,V117)) -> 2642.5
H130: Non Modelled Activities
J137: Min | K137: Average | L137: Max | M137: N
J139: 0.5 | K139: 0.5 | L139: 0.5
H140: Barrier Wall | J140: 44 | K140: 1032 | L140: 2000 | M140: 9
H141: Grinding | J141: 1000 | K141: 1500 | L141: 2000 | M141: 0
H142: Patching | J142: 70 | K142: 285 | L142: 725 | M142: 5

Sheet Miscellaneous Activities (hidden)
B13: Project ID | C13: =IF('Main Menu'!M16="","",'Main Menu'!M16) -> 
B14: Project Location | C14: =IF('Main Menu'!M17="","",'Main Menu'!M17) -> 
B15: Date | C15: =IF('Main Menu'!M18="","",'Main Menu'!M18) -> 
B16: Description | C16: =IF('Main Menu'!M19="","",'Main Menu'!M19) -> 
B17: Name/Initials of Respondent | C17: =IF('Main Menu'!M20="","",'Main Menu'!M20) -> 
B24: Factor | C24: Description | F24: Severity
B25: Type of Construction | C25: 1 = New construction project 2 = Reconstruction, resurfacing or maintenance project 3 = Rehabilitation project (structure currently used for transportation)
B26: Expedited Project Schedule | C26: 1 = 40 hours week, 8 hours per day, normal (optimum) crew size, no work on holidays. 2 = 50 hours per week, larger than normal or constantly changing crew sizes, work on some holidays. 3 = Working beyond 50 weekly hours (overtime), much larger than normal crew sizes (overmanning), working on all holidays, no excuse completion dates.
B27: Night Time Construction | C27: 1 = Daytime construction 3 = Nighttime construction
B28: Urban Project | C28: 1 = Rural area no traffic 2 = Rural area under traffic 3 = Urban area with city streets, nearby residents, commercial buildings, urban cross-sections
B29: Size and Proximity of Storage and Staging Areas | C29: 1 = Adequate storage and staging, on site 2 = Limited size of storage and staging 3 = Insufficient storage and staging, in the general area of the project
B30: Numerous Typical Section Transitions | C30: 1 = Continuous pavement width 2 = Some incidental pavement (intersections, ramp tapers) 3 = Many incidental pavement areas (roundabouts, intersections, ramps)
B31: Season | C31: 1 = Summer, air temperature above 60 °F, some rainfall (minimum level) 2 = Spring or fall, air temperature between 35 and 60 °F, moderate level of rainfall 3 = Winter, air temperature below 35 °F, extreme rainfall and snow
B32: Staged Construction | C32: 1 = Single phase 2 = Two phases, structure done half at a time 3 = Three or more phases, portions of roadway done in different stages and multiple mobilizations
B33: Type and Amount of Miling | C33: 1 = No correction required 2 = Some correction and asphalt paving removal required 3 = Significant correction required
B34: Presence of Ride Specification | C34: 1 = No ride specification 3 = Presence of ride specifications (such as International Roughness Index)
B35: Project Difficulty | C35: Based on your experience and your past projects, you consider this project to be: 1 = Normal Project 2 = Difficult Project 3 = Very Difficult Project
B36: Project Duration | C36: 1 = Short ( ≤ 15 calendar weeks) 2 = Mid-range (15-30 calendar weeks) 3 = Long ( ≥ 30 calendar weeks)
B37: Traffic Conditions | C37: 1 = Low traffic, road closed 2 = Moderate traffic, working adjacent to existing traffic 3 = High traffic, open to traffic, lane restrictions, limited work area
B38: Project Constraints | C38: 1 = No site constraints (few utilities, intersections, driveways, gaps, roundabouts) 2 = Moderate site constraints (some utilities, ramps, limited space for equipment, adjacent buildings) 3 = Difficult site constraints (presence of significant utilities, conflict with other operations)
B39: Permit Restrictions | C39: 1 = Having approved environmental documents, no noise constraints, no vibration constraints 2 = Need to account for noise restrictions and/or vibration constraints during operating time 3 = Different permits needed for erosion control issues, water and dust constraints, storm water treatment, hazardous material, removal and disposal of underground fuel tanks, contaminated soils
B40: Materials Delivery | C40: 1 = Easy to get materials and equipment to paving site 2 = Difficult to get materials and equipment to paving site 3 = Very difficult to get materials and equipment to paving site
B41: Soil Moisture Condition | C41: 1 = Soil near optimum moisture 2 = Wet soil that must be dried 3 = Very wet soil
B42: Soil Type | C42: 1 = Soil is mainly sand 2 = Soil is granular and sandy with some silt and clay 3 = Soil is mainly wet silt, clay or silty clay

Sheet Output Misc. (hidden)
B11: Project ID | C11: =IF('Miscellaneous Activities'!C13=""," ",'Miscellaneous Activities'!C13) -> 
B12: Project Location | C12: =IF('Miscellaneous Activities'!C14=""," ",'Miscellaneous Activities'!C14) -> 
B13: Date | C13: =IF('Miscellaneous Activities'!C15=""," ",'Miscellaneous Activities'!C15) -> 
B14: Description | C14: =IF('Miscellaneous Activities'!C16=""," ",'Miscellaneous Activities'!C16) -> 
B15: Name/Initials of Respondent | C15: =IF('Miscellaneous Activities'!C17=""," ",'Miscellaneous Activities'!C17) -> 
D21: Productivity Rates
B22: Activity | D22: Min | E22: Predicted Value | F22: Max | G22: Unit/Day
B23: Adjust Frames and Grates | D23: ='Hidden Misc.'!$P$10 -> 1 | E23: ='Hidden Misc.'!P24 -> 71.151 | F23: ='Hidden Misc.'!$P$14 -> 74 | G23: Each/Day
B26: Pipe Underdrains | D26: ='Hidden Misc.'!$P$29 -> 110 | E26: ='Hidden Misc.'!P43 -> 110 | F26: ='Hidden Misc.'!$P$33 -> 4349 | G26: Ft/Day
B29: Riprap Light/Medium | D29: ='Hidden Misc.'!P49 -> 20 | E29: ='Hidden Misc.'!P63 -> 20 | F29: ='Hidden Misc.'!P53 -> 216 | G29: S.Y./Day
B32: Riprap Heavy/Extra Heavy | D32: ='Hidden Misc.'!$P$67 -> 49 | E32: ='Hidden Misc.'!P81 -> 1100 | F32: ='Hidden Misc.'!$P$71 -> 1100 | G32: S.Y./Day
B35: Concrete Barrier | D35: ='Hidden Misc.'!P86 -> 44 | E35: ='Hidden Misc.'!P100 -> 925.9 | F35: ='Hidden Misc.'!P90 -> 3280 | G35: Ft/Day
B38: Paint Pavement Marking(Truck) | D38: ='Hidden Misc.'!$P$106 -> 1117 | E38: ='Hidden Misc.'!P120 -> 33394 | F38: ='Hidden Misc.'!$P$110 -> 48971 | G38: Ft/Day
B41: Excelsior Blanket | D41: ='Hidden Misc.'!P125 -> 190 | E41: ='Hidden Misc.'!P139 -> 190 | F41: ='Hidden Misc.'!P129 -> 10000 | G41: S.Y./Day
B44: Seeding | D44: ='Hidden Misc.'!$P$144 -> 0.25 | E44: ='Hidden Misc.'!P158 -> 0.25 | F44: ='Hidden Misc.'!$P$148 -> 4 | G44: Acre/Day
B47: Straw Mulch | D47: ='Hidden Misc.'!$P$163 -> 500 | E47: ='Hidden Misc.'!P177 -> 500 | F47: ='Hidden Misc.'!$P$167 -> 25000 | G47: Ton/Day
B50: Remove Concrete Pavement | D50: ='Hidden Misc.'!$P$182 -> 150 | E50: ='Hidden Misc.'!P196 -> 150 | F50: ='Hidden Misc.'!$P$186 -> 24000 | G50: S.Y./Day
B53: Geotextiles | D53: ='Hidden Misc.'!$P$201 -> 12 | E53: ='Hidden Misc.'!P215 -> 1204 | F53: ='Hidden Misc.'!$P$205 -> 1204 | G53: S.Y./Day
D58: Productivity Rates
B59: Activity | D59: Min | E59: Average | F59: Max | G59: Unit/Day
B60: Catch Basins | D60: ='Hidden Misc.'!J234 -> 1.5 | E60: ='Hidden Misc.'!K234 -> 5.675 | F60: ='Hidden Misc.'!L234 -> 23 | G60: Each
B62: Chain Link Fence | D62: ='Hidden Misc.'!J235 -> 349 | E62: ='Hidden Misc.'!K235 -> 741 | F62: ='Hidden Misc.'!L235 -> 2000 | G62: Ft
B64: Culvert Pipe | D64: ='Hidden Misc.'!J236 -> 40 | E64: ='Hidden Misc.'!K236 -> 179 | F64: ='Hidden Misc.'!L236 -> 589 | G64: Ft
B66: Electrical Conduit In Trench | D66: ='Hidden Misc.'!J237 -> 350 | E66: ='Hidden Misc.'!K237 -> 1057 | F66: ='Hidden Misc.'!L237 -> 2500 | G66: Ft
B68: Electrical Wire Pulling(Lighting) | D68: ='Hidden Misc.'!J238 -> 1000 | E68: ='Hidden Misc.'!K238 -> 7362 | F68: ='Hidden Misc.'!L238 -> 16300 | G68: Ft
B70: Electrical Wire Pulling(Signals) | D70: ='Hidden Misc.'!J239 -> 1000 | E70: ='Hidden Misc.'!K239 -> 2748 | F70: ='Hidden Misc.'!L239 -> 5593 | G70: Ft
B72: Manholes | D72: ='Hidden Misc.'!J240 -> 0.5 | E72: ='Hidden Misc.'!K240 -> 3.5 | F72: ='Hidden Misc.'!L240 -> 12 | G72: Each
B74: Remove Curb & Gutter | D74: ='Hidden Misc.'!J241 -> 200 | E74: ='Hidden Misc.'!K241 -> 2260 | F74: ='Hidden Misc.'!L241 -> 10300 | G74: Ft
B76: Remove Sidewalk | D76: ='Hidden Misc.'!J242 -> 100 | E76: ='Hidden Misc.'!K242 -> 1371 | F76: ='Hidden Misc.'!L242 -> 7850 | G76: Sy
B78: Seal Coat | D78: 15840 | E78: 26400 | F78: 52800 | G78: Ft
B80: Silt Fence | D80: ='Hidden Misc.'!J244 -> 110 | E80: ='Hidden Misc.'!K244 -> 2005 | F80: ='Hidden Misc.'!L244 -> 10000 | G80: Ft
B82: Sodding | D82: ='Hidden Misc.'!J245 -> 321 | E82: ='Hidden Misc.'!K245 -> 3054 | F82: ='Hidden Misc.'!L245 -> 10850 | G82: Sy
B84: Steel Plate Beam Guardrail | D84: ='Hidden Misc.'!J246 -> 25 | E84: ='Hidden Misc.'!K246 -> 618 | F84: ='Hidden Misc.'!L246 -> 1829 | G84: Ft
B86: Steel Plate Beam Guardrail Removal | D86: ='Hidden Misc.'!J247 -> 97 | E86: ='Hidden Misc.'!K247 -> 854 | F86: ='Hidden Misc.'!L247 -> 1900 | G86: Ft
A95: 1
A96: 1

Sheet Hidden Misc. (hidden)
I6: x-new (user input) | M6: Estimate of Ῡ
A7: Dependent Variable 1: FramesGrates
A9: Factors | B9: Estimated Coef. | I9: Possible values | J9: Input x0 | P9: Frames and Grates
A10: (Intercept) | B10: 71.151 | H10: (Intercept) | I10: 1 | J10: 1 | M10: =B10*J10+B11*J11 -> 71.151 | O10: min | P10: 1
A11: Duration | B11: -21.872 | H11: Duration | I11: 1, 2 or 3 | J11: ='Miscellaneous Activities'!F36 -> 0 | O11: Q1 | P11: 4.5
O12: Median | P12: 12
O13: Q3 | P13: 18
O14: Max | P14: 74
O16: Box1 - hidden | P16: =P11 -> 4.5
O17: Box 2 - lower | P17: =P12-P11 -> 7.5
O18: Bow 3 - upper | P18: =P13-P12 -> 6
O19: Estimate | P19: =M10 -> 71.151
O20: Whisker Top | P20: =P14-P13 -> 56
O21: Whisker Bottom | P21: =P11-P10 -> 3.5
O22: Estimate y | P22: 1
O24: Output | P24: =IF(P19<=P10,P10,IF(P19>=P14,P14,P19)) -> 71.151
A26: Dependent Variable 2: Pipe Underdrains
A28: Factors | B28: Estimated Coef. | I28: Possible values | J28: Input x0 | P28: Pipe Underdrains
A29: (Intercept) | B29: -1712 | H29: (Intercept) | I29: 1 | J29: 1 | M29: =B29*J29+B30*J30+B31*J31+B32*J32 -> -1712 | O29: min | P29: 110
A30: NightWork | B30: 1628.1 | H30: NightWork | I30: 1, 2 or 3 | J30: ='Miscellaneous Activities'!F27 -> 0 | O30: Q1 | P30: 175
A31: SoilMoisture | B31: 1343.7 | H31: SoilMoisture | I31: 1, 2 or 3 | J31: ='Miscellaneous Activities'!F41 -> 0 | O31: Median | P31: 400
A32: Material Delivery | B32: -918.2 | H32: Material Delivery | I32: 1, 2 or 3 | J32: ='Miscellaneous Activities'!F40 -> 0 | O32: Q3 | P32: 1350
O33: Max | P33: 4349
O35: Box1 - hidden | P35: =P30 -> 175
O36: Box 2 - lower | P36: =P31-P30 -> 225
O37: Bow 3 - upper | P37: =P32-P31 -> 950
O38: Estimate | P38: =M29 -> -1712
O39: Whisker Top | P39: =P33-P32 -> 2999
O40: Whisker Bottom | P40: =P30-P29 -> 65
O41: Estimate y | P41: 1
O43: Output | P43: =IF(P38<=P29,P29,IF(P38>=P33,P33,P38)) -> 110
A46: Dependent Variable 3: Riprap LM
A48: Factors | B48: Estimated Coef. | I48: Possible values | J48: Input x0 | P48: Riprap LM
A49: (Intercept) | B49: 6.323 | H49: (Intercept) | I49: 1 | J49: 1 | M49: =B49*J49+B50*J50+B51*J51+B52*J52+B53*J53 -> 6.323 | O49: min | P49: 20
A50: Soil Moisture | B50: 58.355 | H50: Soil Moisture | I50: 1, 2 or 3 | J50: ='Miscellaneous Activities'!F41 -> 0 | O50: Q1 | P50: 60
O51: Median | P51: 90
O52: Q3 | P52: 150
O53: Max | P53: 216
O55: Box1 - hidden | P55: =P50 -> 60
O56: Box 2 - lower | P56: =P51-P50 -> 30
O57: Bow 3 - upper | P57: =P52-P51 -> 60
O58: Estimate | P58: =M49 -> 6.323
O59: Whisker Top | P59: =P53-P52 -> 66
O60: Whisker Bottom | P60: =P50-P49 -> 40
O61: Estimate y | P61: 1
O63: Output | P63: =IF(P58<=P49,P49,IF(P58>=P53,P53,P58)) -> 20
A64: Dependent Variable 4: Riprap HEH
A66: Factors | B66: Estimated Coef. | I66: Possible values | J66: Input x0 | P66: Riprap HEH
A67: (Intercept) | B67: 1167.19 | H67: (Intercept) | I67: 1 | J67: 1 | M67: =B67*J67+B68*J68+B69*J69+B70*J70 -> 1167.19 | O67: min | P67: 49
A68: Duration | B68: -238.27 | H68: Duration | I68: 1, 2 or 3 | J68: ='Miscellaneous Activities'!F36 -> 0 | O68: Q1 | P68: 80
A69: Season | B69: -583.85 | H69: Season | I69: 1, 2 or 3 | J69: ='Miscellaneous Activities'!F31 -> 0 | O69: Median | P69: 100
A70: Staged Construction | B70: 266.37 | H70: Staged Construction | I70: 1, 2 or 3 | J70: ='Miscellaneous Activities'!F32 -> 0 | O70: Q3 | P70: 570
O71: Max | P71: 1100
O73: Box1 - hidden | P73: =P68 -> 80
O74: Box 2 - lower | P74: =P69-P68 -> 20
O75: Bow 3 - upper | P75: =P70-P69 -> 470
O76: Estimate | P76: =M67 -> 1167.19
O77: Whisker Top | P77: =P71-P70 -> 530
O78: Whisker Bottom | P78: =P68-P67 -> 31
O79: Estimate y | P79: 1
O81: Output | P81: =IF(P76<=P67,P67,IF(P76>=P71,P71,P76)) -> 1100
A83: Dependent Variable 5: Concrete Barrier
A85: Factors | B85: Estimated Coef. | I85: Possible values | J85: Input x0 | P85: Concrete Barrier
A86: (Intercept) | B86: 925.9 | H86: (Intercept) | I86: 1 | J86: 1 | M86: =B86*J86+B87*J87+B88*J88 -> 925.9 | O86: min | P86: 44
A87: Material Delivery | B87: 1309.9 | H87: Material Delivery | I87: 1, 2 or 3 | J87: ='Miscellaneous Activities'!F40 -> 0 | O87: Q1 | P87: 525
A88: Duration | B88: -767.3 | H88: Duration | I88: 1, 2 or 3 | J88: ='Miscellaneous Activities'!F36 -> 0 | O88: Median | P88: 1210
O89: Q3 | P89: 2062.5
O90: Max | P90: 3280
O92: Box1 - hidden | P92: =P87 -> 525
O93: Box 2 - lower | P93: =P88-P87 -> 685
O94: Bow 3 - upper | P94: =P89-P88 -> 852.5
O95: Estimate | P95: =M86 -> 925.9
O96: Whisker Top | P96: =P90-P89 -> 1217.5
O97: Whisker Bottom | P97: =P87-P86 -> 481
O98: Estimate y | P98: 1
O100: Output | P100: =IF(P95<=P86,P86,IF(P95>=P90,P90,P95)) -> 925.9
A103: Dependent Variable 6: Paint Pavement Marking
A105: Factors | B105: Estimated Coef. | I105: Possible values | J105: Input x0 | P105: Paint Marking
A106: (Intercept) | B106: 33394 | H106: (Intercept) | I106: 1 | J106: 1 | M106: =B106*J106+B107*J107 -> 33394 | O106: min | P106: 1117
A107: Project Constraints | B107: -9756 | H107: Project Constraints | I107: 1, 2 or 3 | J107: ='Miscellaneous Activities'!F38 -> 0 | O107: Q1 | P107: 7250
O108: Median | P108: 12000
O109: Q3 | P109: 26000
O110: Max | P110: 48971
O112: Box1 - hidden | P112: =P107 -> 7250
O113: Box 2 - lower | P113: =P108-P107 -> 4750
O114: Bow 3 - upper | P114: =P109-P108 -> 14000
O115: Estimate | P115: =M106 -> 33394
O116: Whisker Top | P116: =P110-P109 -> 22971
O117: Whisker Bottom | P117: =P107-P106 -> 6133
O118: Estimate y | P118: 1
O120: Output | P120: =IF(P115<=P106,P106,IF(P115>=P110,P110,P115)) -> 33394
A122: Dependent Variable 7: Excelsior Blanket
A124: Factors | B124: Estimated Coef. | I124: Possible values | J124: Input x0 | P124: Excelsior Blanket
A125: (Intercept) | B125: -410.4 | H125: (Intercept) | I125: 1 | J125: 1 | M125: =B125*J125+B126*J126+B127*J127 -> -410.4 | O125: min | P125: 190
A126: Soil Moisture | B126: 2289 | H126: Soil Moisture | I126: 1, 2 or 3 | J126: ='Miscellaneous Activities'!F41 -> 0 | O126: Q1 | P126: 1325
O127: Median | P127: 2200
O128: Q3 | P128: 4675
O129: Max | P129: 10000
O131: Box1 - hidden | P131: =P126 -> 1325
O132: Box 2 - lower | P132: =P127-P126 -> 875
O133: Bow 3 - upper | P133: =P128-P127 -> 2475
O134: Estimate | P134: =M125 -> -410.4
O135: Whisker Top | P135: =P129-P128 -> 5325
O136: Whisker Bottom | P136: =P126-P125 -> 1135
O137: Estimate y | P137: 1
O139: Output | P139: =IF(P134<=P125,P125,IF(P134>=P129,P129,P134)) -> 190
A141: Dependent Variable 8: Seeding
A143: Factors | B143: Estimated Coef. | I143: Possible values | J143: Input x0 | P143: Seeding
A144: (Intercept) | B144: -0.06364 | H144: (Intercept) | I144: 1 | J144: 1 | M144: =B144*J144+B145*J145+B146*J146+B147*J147+B148*J148 -> -0.06364 | O144: min | P144: 0.25
A145: Expediated Schedule | B145: 0.86439 | H145: Expediated Schedule | I145: 1, 2 or 3 | J145: ='Miscellaneous Activities'!F26 -> 0 | O145: Q1 | P145: 0.8
O146: Median | P146: 1
O147: Q3 | P147: 1.25
O148: Max | P148: 4
O150: Box1 - hidden | P150: =P145 -> 0.8
O151: Box 2 - lower | P151: =P146-P145 -> 0.2
O152: Bow 3 - upper | P152: =P147-P146 -> 0.25
O153: Estimate | P153: =M144 -> -0.06364
O154: Whisker Top | P154: =P148-P147 -> 2.75
O155: Whisker Bottom | P155: =P145-P144 -> 0.55
O156: Estimate y | P156: 1
O158: Output | P158: =IF(P153<=P144,P144,IF(P153>=P148,P148,P153)) -> 0.25
A160: Dependent Variable 9: Straw Mulch
A162: Factors | B162: Estimated Coef. | I162: Possible values | J162: Input x0 | P162: Straw Mulch
A163: (Intercept) | B163: -6621.5 | H163: (Intercept) | I163: 1 | J163: 1 | M163: =B163*J163+B164*J164+B165*J165+B166*J166+B167*J167+B168*J168 -> -6621.5 | O163: min | P163: 500
A164: Night Work | B164: 32847.2 | H164: Night Work | I164: 1, 2 or 3 | J164: ='Miscellaneous Activities'!F27 -> 0 | O164: Q1 | P164: 737.75
A165: Soil Moisture | B165: 15942.9 | H165: Soil Moisture | I165: 1, 2 or 3 | J165: ='Miscellaneous Activities'!F41 -> 0 | O165: Median | P165: 6200
A166: Material Delivery | B166: -6929.6 | H166: Material Delivery | I166: 1, 2 or 3 | J166: ='Miscellaneous Activities'!F40 -> 0 | O166: Q3 | P166: 10762.75
A167: Soil Type | B167: -4839 | H167: Soil Type | I167: 1, 2 or 3 | J167: ='Miscellaneous Activities'!F42 -> 0 | O167: Max | P167: 25000
A168: Project Constraints | B168: 3360.4 | H168: Project Constraints | I168: 1, 2 or 3 | J168: ='Miscellaneous Activities'!F38 -> 0
O169: Box1 - hidden | P169: =P164 -> 737.75
O170: Box 2 - lower | P170: =P165-P164 -> 5462.25
O171: Bow 3 - upper | P171: =P166-P165 -> 4562.75
O172: Estimate | P172: =M163 -> -6621.5
O173: Whisker Top | P173: =P167-P166 -> 14237.25
O174: Whisker Bottom | P174: =P164-P163 -> 237.75
O175: Estimate y | P175: 1
O177: Output | P177: =IF(P172<=P163,P163,IF(P172>=P167,P167,P172)) -> 500
A179: Dependent Variable 10: Remove Pavement
A181: Factors | B181: Estimated Coef. | I181: Possible values | J181: Input x0 | P181: Remove Pavement
A182: (Intercept) | B182: -16777 | H182: (Intercept) | I182: 1 | J182: 1 | M182: =B182*J182+B183*J183 -> -16777 | O182: min | P182: 150
A183: Night Work | B183: 20388 | H183: Night Work | I183: 1, 2 or 3 | J183: ='Miscellaneous Activities'!F27 -> 0 | O183: Q1 | P183: 645.5
O184: Median | P184: 1944
O185: Q3 | P185: 3600
O186: Max | P186: 24000
O188: Box1 - hidden | P188: =P183 -> 645.5
O189: Box 2 - lower | P189: =P184-P183 -> 1298.5
O190: Bow 3 - upper | P190: =P185-P184 -> 1656
O191: Estimate | P191: =M182 -> -16777
O192: Whisker Top | P192: =P186-P185 -> 20400
O193: Whisker Bottom | P193: =P183-P182 -> 495.5
O194: Estimate y | P194: 1
O196: Output | P196: =IF(P191<=P182,P182,IF(P191>=P186,P186,P191)) -> 150
A198: Dependent Variable 11: Geotextiles
A200: Factors | B200: Estimated Coef. | I200: Possible values | J200: Input x0 | P200: Geotextiles
A201: (Intercept) | B201: 2043.6 | H201: (Intercept) | I201: 1 | J201: 1 | M201: =B201*J201+B202*J202+B203*J203+B204*J204 -> 2043.6 | O201: min | P201: 12
A202: Duration | B202: -587.4 | H202: Duration | I202: 1, 2 or 3 | J202: ='Miscellaneous Activities'!F36 -> 0 | O202: Q1 | P202: 131.5
A203: Expediated Schedule | B203: -449.2 | H203: Expediated Schedule | I203: 1, 2 or 3 | J203: ='Miscellaneous Activities'!F26 -> 0 | O203: Median | P203: 400
A204: Difficulty | B204: 421.2 | H204: Difficulty | I204: 1, 2 or 3 | J204: ='Miscellaneous Activities'!F35 -> 0 | O204: Q3 | P204: 1073
O205: Max | P205: 1204
O207: Box1 - hidden | P207: =P202 -> 131.5
O208: Box 2 - lower | P208: =P203-P202 -> 268.5
O209: Bow 3 - upper | P209: =P204-P203 -> 673
O210: Estimate | P210: =M201 -> 2043.6
O211: Whisker Top | P211: =P205-P204 -> 131
O212: Whisker Bottom | P212: =P202-P201 -> 119.5
O213: Estimate y | P213: 1
O215: Output | P215: =IF(P210<=P201,P201,IF(P210>=P205,P205,P210)) -> 1204
H224: Non Modelled Activities
J231: Min | K231: Average | L231: Max | M231: N
J233: 0.5 | K233: 0.5 | L233: 0.5
H234: Catch Basins | J234: 1.5 | K234: 5.675 | L234: 23 | M234: 20
H235: Chain Link Fence | J235: 349 | K235: 741 | L235: 2000 | M235: 6
H236: Culvert Pipe | J236: 40 | K236: 179 | L236: 589 | M236: 16
H237: Electrical Conduit In Trench | J237: 350 | K237: 1057 | L237: 2500 | M237: 10
H238: Electrical Wire Pulling(Lighting) | J238: 1000 | K238: 7362 | L238: 16300 | M238: 8
H239: Electrical Wire Pulling(Signals) | J239: 1000 | K239: 2748 | L239: 5593 | M239: 4
H240: Manholes | J240: 0.5 | K240: 3.5 | L240: 12 | M240: 15
H241: Remove Curb & Gutter | J241: 200 | K241: 2260 | L241: 10300 | M241: 11
H242: Remove Sidewalk | J242: 100 | K242: 1371 | L242: 7850 | M242: 8
H243: Seal Coat | J243: NA | K243: NA | L243: NA | M243: 0
H244: Silt Fence | J244: 110 | K244: 2005 | L244: 10000 | M244: 26
H245: Sodding | J245: 321 | K245: 3054 | L245: 10850 | M245: 5
H246: Steel Plate Beam Guardrail | J246: 25 | K246: 618 | L246: 1829 | M246: 21
H247: Steel Plate Beam Guardrail Removal | J247: 97 | K247: 854 | L247: 1900 | M247: 25
